Effective Date,Department,Supplier Name,Payment Date,Amount **,Purpose of Spend,Merchant Category,Card Transaction
Statement 19/01/2016 - 18/02/2016 ,Adults and Communities,Amazon Svcs Europe SAR,04/02/2016,49.56,Other Equipment & Materials - General,Book Stores,GPC
Statement 19/01/2016 - 18/02/2016 ,Adults and Communities,Amazon Svcs Europe SAR,19/01/2016,11.45,Other Services - General,Book Stores,GPC
Statement 19/01/2016 - 18/02/2016 ,Adults and Communities,Amazon UK Marketplace,21/01/2016,11.49,Books - General,Book Stores,GPC
Statement 19/01/2016 - 18/02/2016 ,Adults and Communities,Amazon UK Marketplace,21/01/2016,21.92,Books - General,Miscellaneous and Specialty Retail Stores,GPC
Statement 19/01/2016 - 18/02/2016 ,Adults and Communities,Amazon UK Marketplace,28/01/2016,11.8,Books - General,Miscellaneous and Specialty Retail Stores,GPC
Statement 19/01/2016 - 18/02/2016 ,Adults and Communities,Amazon UK Marketplace,30/01/2016,29,Books - General,Book Stores,GPC
Statement 19/01/2016 - 18/02/2016 ,Adults and Communities,Amazon UK Marketplace,05/02/2016,17.48,Books - General,Book Stores,GPC
Statement 19/01/2016 - 18/02/2016 ,Adults and Communities,Amazon UK Marketplace,08/02/2016,2.05,Books - General,Book Stores,GPC
Statement 19/01/2016 - 18/02/2016 ,Adults and Communities,Amazon UK Marketplace,11/02/2016,19.5,Books - General,Book Stores,GPC
Statement 19/01/2016 - 18/02/2016 ,Adults and Communities,Amazon UK Marketplace,08/02/2016,23.8,Cleaning Materials - General,Miscellaneous and Specialty Retail Stores,GPC
Statement 19/01/2016 - 18/02/2016 ,Adults and Communities,Amazon UK Marketplace,13/02/2016,23.98,Display/Conservn/Exhibitions - General,Miscellaneous and Specialty Retail Stores,GPC
Statement 19/01/2016 - 18/02/2016 ,Adults and Communities,Amazon UK Marketplace,31/01/2016,59.99,General Equipment - General,Miscellaneous and Specialty Retail Stores,GPC
Statement 19/01/2016 - 18/02/2016 ,Adults and Communities,Amazon UK Marketplace,05/02/2016,3.1,General Equipment - General,Miscellaneous and Specialty Retail Stores,GPC
Statement 19/01/2016 - 18/02/2016 ,Adults and Communities,Amazon UK Marketplace,08/02/2016,7.98,General Equipment - General,Book Stores,GPC
Statement 19/01/2016 - 18/02/2016 ,Adults and Communities,Amazon UK Marketplace,12/02/2016,5.9,General Equipment - General,Miscellaneous and Specialty Retail Stores,GPC
Statement 19/01/2016 - 18/02/2016 ,Adults and Communities,Amazon UK Marketplace,27/01/2016,38.55,Materials - General,Miscellaneous and Specialty Retail Stores,GPC
Statement 19/01/2016 - 18/02/2016 ,Adults and Communities,Amazon UK Marketplace,31/01/2016,9.99,Materials - General,Miscellaneous and Specialty Retail Stores,GPC
Statement 19/01/2016 - 18/02/2016 ,Adults and Communities,Amazon UK Marketplace,05/02/2016,40.61,Materials - General,Miscellaneous and Specialty Retail Stores,GPC
Statement 19/01/2016 - 18/02/2016 ,Adults and Communities,Amazon UK Marketplace,10/02/2016,20,Materials - General,Miscellaneous and Specialty Retail Stores,GPC
Statement 19/01/2016 - 18/02/2016 ,Adults and Communities,Amazon UK Marketplace,10/02/2016,14,Materials - General,Miscellaneous and Specialty Retail Stores,GPC
Statement 19/01/2016 - 18/02/2016 ,Adults and Communities,Amazon UK Marketplace,12/02/2016,4.24,Materials - General,Miscellaneous and Specialty Retail Stores,GPC
Statement 19/01/2016 - 18/02/2016 ,Adults and Communities,Amazon UK Marketplace,15/02/2016,9.94,Materials - General,Miscellaneous and Specialty Retail Stores,GPC
Statement 19/01/2016 - 18/02/2016 ,Adults and Communities,Amazon UK Marketplace,03/02/2016,6.39,Operational Equipment - Extended Schools Supplies,Miscellaneous and Specialty Retail Stores,GPC
Statement 19/01/2016 - 18/02/2016 ,Adults and Communities,Amazon UK Marketplace,31/01/2016,119.98,Other Equipment & Materials - General,Miscellaneous and Specialty Retail Stores,GPC
Statement 19/01/2016 - 18/02/2016 ,Adults and Communities,Amazon UK Marketplace,02/02/2016,9.96,Other Equipment & Materials - General,Book Stores,GPC
Statement 19/01/2016 - 18/02/2016 ,Adults and Communities,Amazon UK Marketplace,02/02/2016,5.41,Other Equipment & Materials - General,Miscellaneous and Specialty Retail Stores,GPC
Statement 19/01/2016 - 18/02/2016 ,Adults and Communities,Amazon UK Marketplace,03/02/2016,2.35,Other Equipment & Materials - General,Book Stores,GPC
Statement 19/01/2016 - 18/02/2016 ,Adults and Communities,Amazon UK Marketplace,03/02/2016,8.84,Other Equipment & Materials - General,Book Stores,GPC
Statement 19/01/2016 - 18/02/2016 ,Adults and Communities,Amazon UK Marketplace,03/02/2016,22.98,Other Equipment & Materials - General,Book Stores,GPC
Statement 19/01/2016 - 18/02/2016 ,Adults and Communities,Amazon UK Marketplace,03/02/2016,26.23,Other Equipment & Materials - General,Miscellaneous and Specialty Retail Stores,GPC
Statement 19/01/2016 - 18/02/2016 ,Adults and Communities,Amazon UK Marketplace,03/02/2016,3.16,Other Equipment & Materials - General,Miscellaneous and Specialty Retail Stores,GPC
Statement 19/01/2016 - 18/02/2016 ,Adults and Communities,Amazon UK Marketplace,18/01/2016,8.29,Other Services - General,Book Stores,GPC
Statement 19/01/2016 - 18/02/2016 ,Adults and Communities,Amazon UK Marketplace,19/01/2016,18.5,Other Services - General,Book Stores,GPC
Statement 19/01/2016 - 18/02/2016 ,Adults and Communities,Amazon UK Marketplace,01/02/2016,23.3,Other Services - General,Miscellaneous and Specialty Retail Stores,GPC
Statement 19/01/2016 - 18/02/2016 ,Adults and Communities,Amazon UK Marketplace,01/02/2016,9,Other Services - General,Miscellaneous and Specialty Retail Stores,GPC
Statement 19/01/2016 - 18/02/2016 ,Adults and Communities,Amazon UK Marketplace,10/02/2016,16.5,Other Services - General,Book Stores,GPC
Statement 19/01/2016 - 18/02/2016 ,Adults and Communities,Amazon UK Marketplace,10/02/2016,6.5,Other Services - General,Miscellaneous and Specialty Retail Stores,GPC
Statement 19/01/2016 - 18/02/2016 ,Adults and Communities,Amazon UK Marketplace,11/02/2016,13.27,Other Services - General,Miscellaneous and Specialty Retail Stores,GPC
Statement 19/01/2016 - 18/02/2016 ,Adults and Communities,Amazon UK Marketplace,16/02/2016,2.48,Other Services - General,Book Stores,GPC
Statement 19/01/2016 - 18/02/2016 ,Adults and Communities,Amazon UK Marketplace,19/01/2016,3.32,Personal Needs of Clients - General,Miscellaneous and Specialty Retail Stores,GPC
Statement 19/01/2016 - 18/02/2016 ,Adults and Communities,Amazon UK Marketplace,11/02/2016,20.99,Personal Needs of Clients - General,Miscellaneous and Specialty Retail Stores,GPC
Statement 19/01/2016 - 18/02/2016 ,Adults and Communities,Amazon UK Marketplace,19/01/2016,1.24,Postal Services - General,Miscellaneous and Specialty Retail Stores,GPC
Statement 19/01/2016 - 18/02/2016 ,Adults and Communities,Amazon UK Marketplace,10/02/2016,3.99,Postal Services - General,Miscellaneous and Specialty Retail Stores,GPC
Statement 19/01/2016 - 18/02/2016 ,Adults and Communities,Amazon UK Marketplace,18/01/2016,80.01,Stationery - General,Miscellaneous and Specialty Retail Stores,GPC
Statement 19/01/2016 - 18/02/2016 ,Adults and Communities,Amazon UK Marketplace,18/01/2016,22.49,Stationery - General,Miscellaneous and Specialty Retail Stores,GPC
Statement 19/01/2016 - 18/02/2016 ,Adults and Communities,Amazon UK Marketplace,19/01/2016,25.99,Stationery - General,Miscellaneous and Specialty Retail Stores,GPC
Statement 19/01/2016 - 18/02/2016 ,Adults and Communities,Amazon UK Marketplace,25/01/2016,6.45,Stationery - General,Book Stores,GPC
Statement 19/01/2016 - 18/02/2016 ,Adults and Communities,Amazon UK Marketplace,25/01/2016,6.93,Stationery - General,Book Stores,GPC
Statement 19/01/2016 - 18/02/2016 ,Adults and Communities,Amazon UK Marketplace,02/02/2016,16.2,Stationery - General,Book Stores,GPC
Statement 19/01/2016 - 18/02/2016 ,Adults and Communities,Amazon UK Marketplace,04/02/2016,11.95,Stationery - General,Book Stores,GPC
Statement 19/01/2016 - 18/02/2016 ,Adults and Communities,Amazon UK Marketplace,08/02/2016,3.98,Stationery - General,Book Stores,GPC
Statement 19/01/2016 - 18/02/2016 ,Adults and Communities,Amazon UK Retail,24/01/2016,41.65,Books - General,Direct Marketers - Other,GPC
Statement 19/01/2016 - 18/02/2016 ,Adults and Communities,Amazon UK Retail,13/02/2016,7.99,Books - General,Direct Marketers - Other,GPC
Statement 19/01/2016 - 18/02/2016 ,Adults and Communities,Amazon UK Retail,13/02/2016,22.49,Books - General,Direct Marketers - Other,GPC
Statement 19/01/2016 - 18/02/2016 ,Adults and Communities,Amazon UK Retail,16/02/2016,7.99,Books - General,Direct Marketers - Other,GPC
Statement 19/01/2016 - 18/02/2016 ,Adults and Communities,Amazon UK Retail,12/02/2016,10.43,Display/Conservn/Exhibitions - Exhibitions,Direct Marketers - Other,GPC
Statement 19/01/2016 - 18/02/2016 ,Adults and Communities,Amazon UK Retail,14/02/2016,8.96,Materials - General,Direct Marketers - Other,GPC
Statement 19/01/2016 - 18/02/2016 ,Adults and Communities,Amazon UK Retail,02/02/2016,11.64,Other Equipment & Materials - General,Direct Marketers - Other,GPC
Statement 19/01/2016 - 18/02/2016 ,Adults and Communities,Amazon UK Retail,18/01/2016,-10.67,Other Expenditure - General,Direct Marketers - Other,GPC
Statement 19/01/2016 - 18/02/2016 ,Adults and Communities,Amazon UK Retail,18/01/2016,-13.79,Other Expenditure - General,Direct Marketers - Other,GPC
Statement 19/01/2016 - 18/02/2016 ,Adults and Communities,Amazon UK Retail,30/01/2016,47.84,Other Expenditure - General,Direct Marketers - Other,GPC
Statement 19/01/2016 - 18/02/2016 ,Adults and Communities,Amazon UK Retail,02/02/2016,28.97,Other Expenditure - General,Direct Marketers - Other,GPC
Statement 19/01/2016 - 18/02/2016 ,Adults and Communities,Amazon UK Retail,02/02/2016,74.9,Other Expenditure - General,Direct Marketers - Other,GPC
Statement 19/01/2016 - 18/02/2016 ,Adults and Communities,Amazon UK Retail,03/02/2016,187.1,Other Expenditure - General,Direct Marketers - Other,GPC
Statement 19/01/2016 - 18/02/2016 ,Adults and Communities,Amazon UK Retail,06/02/2016,199.36,Other Expenditure - General,Direct Marketers - Other,GPC
Statement 19/01/2016 - 18/02/2016 ,Adults and Communities,Amazon UK Retail,09/02/2016,19.95,Other Expenditure - General,Direct Marketers - Other,GPC
Statement 19/01/2016 - 18/02/2016 ,Adults and Communities,Amazon UK Retail,10/02/2016,19.96,Other Expenditure - General,Direct Marketers - Other,GPC
Statement 19/01/2016 - 18/02/2016 ,Adults and Communities,Amazon UK Retail,10/02/2016,4.81,Other Expenditure - General,Direct Marketers - Other,GPC
Statement 19/01/2016 - 18/02/2016 ,Adults and Communities,Amazon UK Retail,13/02/2016,36.86,Other Expenditure - General,Direct Marketers - Other,GPC
Statement 19/01/2016 - 18/02/2016 ,Adults and Communities,Amazon UK Retail,16/02/2016,20.63,Other Services - General,Direct Marketers - Other,GPC
Statement 19/01/2016 - 18/02/2016 ,Adults and Communities,Amazon UK Retail,30/01/2016,20.45,Stationery - General,Direct Marketers - Other,GPC
Statement 19/01/2016 - 18/02/2016 ,Adults and Communities,AMZ iSUBSCRiBE Ltd,15/02/2016,275.94,Communications Equipment - General,Computer Network/Information Services,GPC
Statement 19/01/2016 - 18/02/2016 ,Adults and Communities,ARGOS RETAIL GROUP,25/01/2016,58.94,General Equipment - General,Discount Stores,GPC
Statement 19/01/2016 - 18/02/2016 ,Adults and Communities,ARGOS RETAIL GROUP,25/01/2016,35.97,General Equipment - General,Discount Stores,GPC
Statement 19/01/2016 - 18/02/2016 ,Adults and Communities,ASDA 4387,27/01/2016,25,Materials - General,"Grocery Stores, Supermarkets",GPC
Statement 19/01/2016 - 18/02/2016 ,Adults and Communities,ASDA STORES,10/02/2016,29.22,Materials - General,"Grocery Stores, Supermarkets",GPC
Statement 19/01/2016 - 18/02/2016 ,Adults and Communities,ASDA SUPERSTORE,03/02/2016,17.5,Other Services - General,"Grocery Stores, Supermarkets",GPC
Statement 19/01/2016 - 18/02/2016 ,Adults and Communities,ASDA SUPERSTORE,23/01/2016,43.29,Provisions - General,"Grocery Stores, Supermarkets",GPC
Statement 19/01/2016 - 18/02/2016 ,Adults and Communities,ASDA SUPERSTORE,03/02/2016,20,Provisions - General,"Grocery Stores, Supermarkets",GPC
Statement 19/01/2016 - 18/02/2016 ,Adults and Communities,ASDA SUPERSTORE,10/02/2016,8.25,Provisions - General,"Grocery Stores, Supermarkets",GPC
Statement 19/01/2016 - 18/02/2016 ,Adults and Communities,ASDA SUPERSTORE,11/02/2016,146.16,Provisions - General,"Grocery Stores, Supermarkets",GPC
Statement 19/01/2016 - 18/02/2016 ,Adults and Communities,AUBREYFALLS,16/02/2016,63,Materials - General,Miscellaneous House Furnishing Specialty Shops,GPC
Statement 19/01/2016 - 18/02/2016 ,Adults and Communities,B & Q,19/01/2016,42.27,Aids & Adaptations - Minor Adaptations,"Building Materials, Lumber Stores",GPC
Statement 19/01/2016 - 18/02/2016 ,Adults and Communities,B & Q,16/02/2016,22.3,Aids & Adaptations - Minor Adaptations,"Building Materials, Lumber Stores",GPC
Statement 19/01/2016 - 18/02/2016 ,Adults and Communities,B & Q,16/02/2016,3.46,Materials - General,"Building Materials, Lumber Stores",GPC
Statement 19/01/2016 - 18/02/2016 ,Adults and Communities,B&M RETAIL,08/02/2016,79.97,Materials - General,Discount Stores,GPC
Statement 19/01/2016 - 18/02/2016 ,Adults and Communities,B&M RETAIL LTD,16/02/2016,4.96,Materials - General,Discount Stores,GPC
Statement 19/01/2016 - 18/02/2016 ,Adults and Communities,B&Q,11/02/2016,31.07,Aids & Adaptations - Minor Adaptations,"Building Materials, Lumber Stores",GPC
Statement 19/01/2016 - 18/02/2016 ,Adults and Communities,B&Q DIRECT,21/01/2016,28,Materials - General,"Building Materials, Lumber Stores",GPC
Statement 19/01/2016 - 18/02/2016 ,Adults and Communities,BC.BASECAMP 2997305,01/02/2016,14.14,Stationery - General,Membership Organizations-Not Elsewhere Classified,GPC
Statement 19/01/2016 - 18/02/2016 ,Adults and Communities,BOOTS COALVILLE,21/01/2016,6.98,Other Equipment & Materials - General,"Drug Stores, Pharmacies",GPC
Statement 19/01/2016 - 18/02/2016 ,Adults and Communities,BT BUSINESS DIRECT LTD,26/01/2016,246.92,IT Equipment - General,"Computers, Computer Peripheral Equipment, Software",GPC
Statement 19/01/2016 - 18/02/2016 ,Adults and Communities,CENTRAL ENG COOP,23/01/2016,80.08,Materials - General,Department Stores,GPC
Statement 19/01/2016 - 18/02/2016 ,Adults and Communities,CENTRAL ENG COOP,25/01/2016,3.85,Materials - General,Department Stores,GPC
Statement 19/01/2016 - 18/02/2016 ,Adults and Communities,CENTRAL ENG COOP,27/01/2016,10,Materials - General,Department Stores,GPC
Statement 19/01/2016 - 18/02/2016 ,Adults and Communities,CENTRAL ENG COOP,28/01/2016,107.86,Materials - General,Department Stores,GPC
Statement 19/01/2016 - 18/02/2016 ,Adults and Communities,CENTRAL ENG COOP,30/01/2016,11.48,Materials - General,Department Stores,GPC
Statement 19/01/2016 - 18/02/2016 ,Adults and Communities,CENTRAL ENG COOP,31/01/2016,2.38,Materials - General,Department Stores,GPC
Statement 19/01/2016 - 18/02/2016 ,Adults and Communities,CENTRAL ENG COOP,03/02/2016,47.29,Materials - General,Department Stores,GPC
Statement 19/01/2016 - 18/02/2016 ,Adults and Communities,CENTRAL ENG COOP,04/02/2016,97.94,Materials - General,Department Stores,GPC
Statement 19/01/2016 - 18/02/2016 ,Adults and Communities,CENTRAL ENG COOP,13/02/2016,107.59,Materials - General,Department Stores,GPC
Statement 19/01/2016 - 18/02/2016 ,Adults and Communities,CENTRAL ENG COOP,15/02/2016,11.28,Materials - General,Department Stores,GPC
Statement 19/01/2016 - 18/02/2016 ,Adults and Communities,CENTRAL ENGLAND CO,18/01/2016,3.31,Client/Volunteers - General,Department Stores,GPC
Statement 19/01/2016 - 18/02/2016 ,Adults and Communities,CHARNWOOD BC MOTO,22/01/2016,15.99,Supported Living - Main Programme,Government Services-Not Elsewhere Classified,GPC
Statement 19/01/2016 - 18/02/2016 ,Adults and Communities,CHARNWOOD BOROUGH COUNCI,19/01/2016,6,Casual/Essential - General,Automobile Parking Lots and Garages,GPC
Statement 19/01/2016 - 18/02/2016 ,Adults and Communities,CHARNWOOD BOROUGH COUNCI,27/01/2016,6,Casual/Essential - General,Automobile Parking Lots and Garages,GPC
Statement 19/01/2016 - 18/02/2016 ,Adults and Communities,CHARNWOOD BOROUGH COUNCI,03/02/2016,6,Casual/Essential - General,Automobile Parking Lots and Garages,GPC
Statement 19/01/2016 - 18/02/2016 ,Adults and Communities,CHARNWOOD BOROUGH COUNCI,28/01/2016,1.6,Other Equipment & Materials - General,Automobile Parking Lots and Garages,GPC
Statement 19/01/2016 - 18/02/2016 ,Adults and Communities,CHELSTON DIRECT,22/01/2016,4.98,Other Services - General,Family Clothing Stores,GPC
Statement 19/01/2016 - 18/02/2016 ,Adults and Communities,COSTA COFFEE,11/02/2016,4.4,Other Expenditure - General,Fast-Food Restaurants (Quick Payment Service Pilot,GPC
Statement 19/01/2016 - 18/02/2016 ,Adults and Communities,COSTA COFFEE,16/02/2016,4.35,Other Expenditure - General,Fast-Food Restaurants (Quick Payment Service Pilot,GPC
Statement 19/01/2016 - 18/02/2016 ,Adults and Communities,CROSSBOW EDUCATION,20/01/2016,8.33,Training Expenses - General,Correspondence Schools,GPC
Statement 19/01/2016 - 18/02/2016 ,Adults and Communities,CURRYS ONLINE,04/02/2016,169,Publicity/Marketing - General,"RADIO, TELEVISION, AND STEREO STORES (ELECTRONIC STORES)",GPC
Statement 19/01/2016 - 18/02/2016 ,Adults and Communities,DEMONTFORD UNIVERSITY-,10/02/2016,6.1,Other Expenditure - General,"Eating Places, Restaurants",GPC
Statement 19/01/2016 - 18/02/2016 ,Adults and Communities,DENNIS PUBLISHING,30/01/2016,39.99,Books - General,Miscellaneous Publishing and  Printing,GPC
Statement 19/01/2016 - 18/02/2016 ,Adults and Communities,DIGI-QUICK,11/02/2016,39.99,Materials - General,"RADIO, TELEVISION, AND STEREO STORES (ELECTRONIC STORES)",GPC
Statement 19/01/2016 - 18/02/2016 ,Adults and Communities,DLT MEDIA LTD,15/02/2016,455.88,Publicity/Marketing - Information Provision,Advertising Services,GPC
Statement 19/01/2016 - 18/02/2016 ,Adults and Communities,DUNELM (SOFT FURNISHIN,29/01/2016,24.02,Materials - General,"Drapery, Window Coverings, and Upholstery Stores",GPC
Statement 19/01/2016 - 18/02/2016 ,Adults and Communities,DUNELM (SOFT FURNISHIN,05/02/2016,7.99,Materials - General,"Drapery, Window Coverings, and Upholstery Stores",GPC
Statement 19/01/2016 - 18/02/2016 ,Adults and Communities,DUNELM ONLINE ORDER,09/02/2016,59.97,Materials - General,"Drapery, Window Coverings, and Upholstery Stores",GPC
Statement 19/01/2016 - 18/02/2016 ,Adults and Communities,EASTMIDLANDSTRAINS,26/01/2016,17.8,Casual/Essential - General,Passenger Railways,GPC
Statement 19/01/2016 - 18/02/2016 ,Adults and Communities,EASTMIDLANDSTRAINS,16/02/2016,71.1,Casual/Essential - General,Passenger Railways,GPC
Statement 19/01/2016 - 18/02/2016 ,Adults and Communities,EASTMIDLANDSTRAINS,09/02/2016,98.65,Public Transport -  Staff - General,Passenger Railways,GPC
Statement 19/01/2016 - 18/02/2016 ,Adults and Communities,EASTMIDLANDSTRAINS,19/01/2016,112.6,Subsistence - General,Passenger Railways,GPC
Statement 19/01/2016 - 18/02/2016 ,Adults and Communities,ESPO,04/02/2016,139.45,Other Expenditure - General,Government Services-Not Elsewhere Classified,GPC
Statement 19/01/2016 - 18/02/2016 ,Adults and Communities,ESPO,08/02/2016,24.25,Other Expenditure - General,Government Services-Not Elsewhere Classified,GPC
Statement 19/01/2016 - 18/02/2016 ,Adults and Communities,ESPO,08/02/2016,106.8,Other Expenditure - General,Government Services-Not Elsewhere Classified,GPC
Statement 19/01/2016 - 18/02/2016 ,Adults and Communities,EUROFFICE.CO.UK,12/02/2016,62.36,Stationery - General,"Stationery, Office, and School Supply Stores",GPC
Statement 19/01/2016 - 18/02/2016 ,Adults and Communities,FACEBOOK AZPHY8J7R2,31/01/2016,18.95,Publicity/Marketing - General,Advertising Services,GPC
Statement 19/01/2016 - 18/02/2016 ,Adults and Communities,FAST KEY SERVICES,03/02/2016,6.74,Other Expenditure - General,Business Services-Not Elsewhere Classified,GPC
Statement 19/01/2016 - 18/02/2016 ,Adults and Communities,FOOD SAFETY DIRECT LTD,22/01/2016,5.99,General Equipment - General,Miscellaneous and Specialty Retail Stores,GPC
Statement 19/01/2016 - 18/02/2016 ,Adults and Communities,FOOD SAFETY DIRECT LTD,22/01/2016,8.98,General Equipment - General,Miscellaneous and Specialty Retail Stores,GPC
Statement 19/01/2016 - 18/02/2016 ,Adults and Communities,FOOD SAFETY DIRECT LTD,22/01/2016,-3,General Equipment - General,Miscellaneous and Specialty Retail Stores,GPC
Statement 19/01/2016 - 18/02/2016 ,Adults and Communities,FOREIGN EXCHANGE FEE,02/02/2016,0.39,Stationery - General,Misc-Unknown,GPC
Statement 19/01/2016 - 18/02/2016 ,Adults and Communities,HAMMONDS,09/02/2016,360,General Equipment - General,"Automobile and Truck Dealers-Sales, Service, Repai",GPC
Statement 19/01/2016 - 18/02/2016 ,Adults and Communities,Harborough Leisure,27/01/2016,40,Training Expenses - General,RECREATION SERVICES--NOT ELSEWHERE CLASSIFIED,GPC
Statement 19/01/2016 - 18/02/2016 ,Adults and Communities,HARLOW BROS LTD,20/01/2016,80.54,Aids & Adaptations - Minor Adaptations,"Building Materials, Lumber Stores",GPC
Statement 19/01/2016 - 18/02/2016 ,Adults and Communities,HEREFORD MAP CENTRE,05/02/2016,-19.99,Other Expenditure - General,"Stationary, Office Supplies, Printing and Writing",GPC
Statement 19/01/2016 - 18/02/2016 ,Adults and Communities,HOBBYCRAFT (INTERNET),04/02/2016,13.16,Other Equipment & Materials - General,"Artist Supply Stores, Craft Shops",GPC
Statement 19/01/2016 - 18/02/2016 ,Adults and Communities,HOBBYCRAFT (INTERNET),08/02/2016,3.45,Other Equipment & Materials - General,"Artist Supply Stores, Craft Shops",GPC
Statement 19/01/2016 - 18/02/2016 ,Adults and Communities,ICELAND,23/01/2016,43,Materials - General,"Grocery Stores, Supermarkets",GPC
Statement 19/01/2016 - 18/02/2016 ,Adults and Communities,ICELAND,27/01/2016,13.5,Materials - General,"Grocery Stores, Supermarkets",GPC
Statement 19/01/2016 - 18/02/2016 ,Adults and Communities,ICELAND,03/02/2016,15,Materials - General,"Grocery Stores, Supermarkets",GPC
Statement 19/01/2016 - 18/02/2016 ,Adults and Communities,ICELAND,04/02/2016,14,Materials - General,"Grocery Stores, Supermarkets",GPC
Statement 19/01/2016 - 18/02/2016 ,Adults and Communities,ICELAND,15/02/2016,32,Materials - General,"Grocery Stores, Supermarkets",GPC
Statement 19/01/2016 - 18/02/2016 ,Adults and Communities,ICELAND,20/01/2016,9.55,Provisions - General,"Grocery Stores, Supermarkets",GPC
Statement 19/01/2016 - 18/02/2016 ,Adults and Communities,ICELAND,27/01/2016,13.05,Provisions - General,"Grocery Stores, Supermarkets",GPC
Statement 19/01/2016 - 18/02/2016 ,Adults and Communities,IMAGINE PUBLISHING,10/02/2016,46.25,Other Equipment & Materials - General,Business Services-Not Elsewhere Classified,GPC
Statement 19/01/2016 - 18/02/2016 ,Adults and Communities,IMMEDIATEMEDIABRIS,28/01/2016,54.58,Books - General,"Books, Periodicals, and Newspapers",GPC
Statement 19/01/2016 - 18/02/2016 ,Adults and Communities,IPS DURHAM CONTACT CTR,09/02/2016,46,Other Expenditure - General,Government Services-Not Elsewhere Classified,GPC
Statement 19/01/2016 - 18/02/2016 ,Adults and Communities,IPS DURHAM CONTACT CTR,09/02/2016,46,Other Expenditure - General,Government Services-Not Elsewhere Classified,GPC
Statement 19/01/2016 - 18/02/2016 ,Adults and Communities,JAK STATIONERS LTD,25/01/2016,180,Stationery - General,"Stationery, Office, and School Supply Stores",GPC
Statement 19/01/2016 - 18/02/2016 ,Adults and Communities,JAK STATIONERS LTD,25/01/2016,180,Stationery - General,"Stationery, Office, and School Supply Stores",GPC
Statement 19/01/2016 - 18/02/2016 ,Adults and Communities,KFC - COALVILLE,16/02/2016,9.77,Subsistence - General,Fast-Food Restaurants (Quick Payment Service Pilot,GPC
Statement 19/01/2016 - 18/02/2016 ,Adults and Communities,KFC - COALVILLE,16/02/2016,5.09,Subsistence - General,Fast-Food Restaurants (Quick Payment Service Pilot,GPC
Statement 19/01/2016 - 18/02/2016 ,Adults and Communities,LCC CATERING SERVICES,20/01/2016,17.11,Client/Volunteers - General,Government Services-Not Elsewhere Classified,GPC
Statement 19/01/2016 - 18/02/2016 ,Adults and Communities,LEIC CITY COUNCIL,18/01/2016,23,Other Expenditure - General,Government Services-Not Elsewhere Classified,GPC
Statement 19/01/2016 - 18/02/2016 ,Adults and Communities,LEIC CITY COUNCIL,18/01/2016,13,Other Expenditure - General,Government Services-Not Elsewhere Classified,GPC
Statement 19/01/2016 - 18/02/2016 ,Adults and Communities,LEIC CITY COUNCIL,19/01/2016,23,Other Expenditure - General,Government Services-Not Elsewhere Classified,GPC
Statement 19/01/2016 - 18/02/2016 ,Adults and Communities,LEIC CITY COUNCIL,19/01/2016,23,Other Expenditure - General,Government Services-Not Elsewhere Classified,GPC
Statement 19/01/2016 - 18/02/2016 ,Adults and Communities,LEIC CITY COUNCIL,20/01/2016,-6,Other Expenditure - General,Government Services-Not Elsewhere Classified,GPC
Statement 19/01/2016 - 18/02/2016 ,Adults and Communities,LEIC CITY COUNCIL,20/01/2016,-10,Other Expenditure - General,Government Services-Not Elsewhere Classified,GPC
Statement 19/01/2016 - 18/02/2016 ,Adults and Communities,LEIC CITY COUNCIL,26/01/2016,13,Other Expenditure - General,Government Services-Not Elsewhere Classified,GPC
Statement 19/01/2016 - 18/02/2016 ,Adults and Communities,LEIC CITY COUNCIL,27/01/2016,13,Other Expenditure - General,Government Services-Not Elsewhere Classified,GPC
Statement 19/01/2016 - 18/02/2016 ,Adults and Communities,LEIC CITY COUNCIL,09/02/2016,13,Other Expenditure - General,Government Services-Not Elsewhere Classified,GPC
Statement 19/01/2016 - 18/02/2016 ,Adults and Communities,LEIC CITY COUNCIL,09/02/2016,23,Other Expenditure - General,Government Services-Not Elsewhere Classified,GPC
Statement 19/01/2016 - 18/02/2016 ,Adults and Communities,LEIC CITY COUNCIL,10/02/2016,-6,Other Expenditure - General,Government Services-Not Elsewhere Classified,GPC
Statement 19/01/2016 - 18/02/2016 ,Adults and Communities,LEICESTERSHIRE C COUNC,09/02/2016,11,Other Expenditure - General,Government Services-Not Elsewhere Classified,GPC
Statement 19/01/2016 - 18/02/2016 ,Adults and Communities,LIDL UK,01/02/2016,51.86,Materials - General,"Grocery Stores, Supermarkets",GPC
Statement 19/01/2016 - 18/02/2016 ,Adults and Communities,LIDL UK,03/02/2016,39.09,Materials - General,"Grocery Stores, Supermarkets",GPC
Statement 19/01/2016 - 18/02/2016 ,Adults and Communities,LIDL UK,05/02/2016,68.4,Materials - General,"Grocery Stores, Supermarkets",GPC
Statement 19/01/2016 - 18/02/2016 ,Adults and Communities,LIDL UK,08/02/2016,53.61,Materials - General,"Grocery Stores, Supermarkets",GPC
Statement 19/01/2016 - 18/02/2016 ,Adults and Communities,LIDL UK,10/02/2016,59.78,Materials - General,"Grocery Stores, Supermarkets",GPC
Statement 19/01/2016 - 18/02/2016 ,Adults and Communities,LIDL UK,13/02/2016,58.06,Materials - General,"Grocery Stores, Supermarkets",GPC
Statement 19/01/2016 - 18/02/2016 ,Adults and Communities,LIDL UK,15/02/2016,61.13,Materials - General,"Grocery Stores, Supermarkets",GPC
Statement 19/01/2016 - 18/02/2016 ,Adults and Communities,LUX TECHNICAL LTD,12/02/2016,1902,Other Equipment & Materials - General,"Equipment Rental and Leasing Services, Tool Rental",GPC
Statement 19/01/2016 - 18/02/2016 ,Adults and Communities,M&S E COMMERCE,20/01/2016,187.5,Protective Clothing & Uniforms - General,"Grocery Stores, Supermarkets",GPC
Statement 19/01/2016 - 18/02/2016 ,Adults and Communities,MAX SPIELMANN LTD,26/01/2016,3,Printing - General,Photographic Studios,GPC
Statement 19/01/2016 - 18/02/2016 ,Adults and Communities,MCDONALDS,13/02/2016,11.36,Subsistence - General,"Eating Places, Restaurants",GPC
Statement 19/01/2016 - 18/02/2016 ,Adults and Communities,MERCURY NEWS 63902/425,30/01/2016,2.39,Operational Equipment - General,"Grocery Stores, Supermarkets",GPC
Statement 19/01/2016 - 18/02/2016 ,Adults and Communities,MERCURY NEWS 63933,09/02/2016,42.25,Newspapers & Periodicals - General,"Grocery Stores, Supermarkets",GPC
Statement 19/01/2016 - 18/02/2016 ,Adults and Communities,NCP LIMITED,04/02/2016,8.75,Casual/Essential - General,Automobile Parking Lots and Garages,GPC
Statement 19/01/2016 - 18/02/2016 ,Adults and Communities,NCP LIMITED,29/01/2016,2.83,Other Expenditure - General,Automobile Parking Lots and Garages,GPC
Statement 19/01/2016 - 18/02/2016 ,Adults and Communities,NOTTINGHAM CITY CO,19/01/2016,11,Communications Equipment - General,Computer Network/Information Services,GPC
Statement 19/01/2016 - 18/02/2016 ,Adults and Communities,NOTTINGHAM CITY CO,25/01/2016,11,Communications Equipment - General,Computer Network/Information Services,GPC
Statement 19/01/2016 - 18/02/2016 ,Adults and Communities,NOTTINGHAM CITY CO,05/02/2016,11,Communications Equipment - General,Computer Network/Information Services,GPC
Statement 19/01/2016 - 18/02/2016 ,Adults and Communities,OCADO RETAIL LIMIT,18/01/2016,89.99,Provisions - General,"Miscellaneous Food Stores-Convenience Stores, Mark",GPC
Statement 19/01/2016 - 18/02/2016 ,Adults and Communities,OCADO RETAIL LIMIT,23/01/2016,88.47,Provisions - General,"Miscellaneous Food Stores-Convenience Stores, Mark",GPC
Statement 19/01/2016 - 18/02/2016 ,Adults and Communities,OCADO RETAIL LIMIT,26/01/2016,132.11,Provisions - General,"Miscellaneous Food Stores-Convenience Stores, Mark",GPC
Statement 19/01/2016 - 18/02/2016 ,Adults and Communities,OCADO RETAIL LIMIT,30/01/2016,64.37,Provisions - General,"Miscellaneous Food Stores-Convenience Stores, Mark",GPC
Statement 19/01/2016 - 18/02/2016 ,Adults and Communities,OCADO RETAIL LIMIT,02/02/2016,99.63,Provisions - General,"Miscellaneous Food Stores-Convenience Stores, Mark",GPC
Statement 19/01/2016 - 18/02/2016 ,Adults and Communities,OCADO RETAIL LIMIT,06/02/2016,86.4,Provisions - General,"Miscellaneous Food Stores-Convenience Stores, Mark",GPC
Statement 19/01/2016 - 18/02/2016 ,Adults and Communities,OCADO RETAIL LIMIT,09/02/2016,96.36,Provisions - General,"Miscellaneous Food Stores-Convenience Stores, Mark",GPC
Statement 19/01/2016 - 18/02/2016 ,Adults and Communities,OCADO RETAIL LIMIT,12/02/2016,77.65,Provisions - General,"Miscellaneous Food Stores-Convenience Stores, Mark",GPC
Statement 19/01/2016 - 18/02/2016 ,Adults and Communities,OCADO RETAIL LIMIT,16/02/2016,69.08,Provisions - General,"Miscellaneous Food Stores-Convenience Stores, Mark",GPC
Statement 19/01/2016 - 18/02/2016 ,Adults and Communities,PAYPAL  CRIMRICHDES,10/02/2016,12.99,Other Equipment & Materials - General,Antique Shops,GPC
Statement 19/01/2016 - 18/02/2016 ,Adults and Communities,PAYPAL  DABSCOMPLC,18/01/2016,41.94,Materials - General,"RADIO, TELEVISION, AND STEREO STORES (ELECTRONIC STORES)",GPC
Statement 19/01/2016 - 18/02/2016 ,Adults and Communities,PAYPAL  DERBYSHIRE,02/02/2016,3,Other Equipment & Materials - General,"Hobby, Toy, and Game Shops",GPC
Statement 19/01/2016 - 18/02/2016 ,Adults and Communities,PAYPAL  DIVIDESIGNI,11/02/2016,177.43,Other Equipment & Materials - General,Chemicals and Allied Products Not Elsewhere Classi,GPC
Statement 19/01/2016 - 18/02/2016 ,Adults and Communities,PAYPAL  EUROFFICELT,29/01/2016,35.5,General Equipment - General,"Stationery, Office, and School Supply Stores",GPC
Statement 19/01/2016 - 18/02/2016 ,Adults and Communities,PAYPAL  EUROFFICELT,27/01/2016,170.36,Stationery - General,"Stationery, Office, and School Supply Stores",GPC
Statement 19/01/2016 - 18/02/2016 ,Adults and Communities,PAYPAL  FANCYDRESSO,02/02/2016,4.6,Other Equipment & Materials - General,Women's Ready to Wear Shoes,GPC
Statement 19/01/2016 - 18/02/2016 ,Adults and Communities,PAYPAL  FASTKEYSERV,04/02/2016,6.74,General Equipment - General,Advertising Services,GPC
Statement 19/01/2016 - 18/02/2016 ,Adults and Communities,PAYPAL  JASMINANDRE,18/01/2016,36.05,Materials - General,Miscellaneous and Specialty Retail Stores,GPC
Statement 19/01/2016 - 18/02/2016 ,Adults and Communities,PAYPAL  MCCREANOR,06/02/2016,50,Display/Conservn/Exhibitions - Exhibitions,Miscellaneous and Specialty Retail Stores,GPC
Statement 19/01/2016 - 18/02/2016 ,Adults and Communities,PAYPAL  NATSCA,03/02/2016,40,Other Services - General,Charitable and Social Service Organizations,GPC
Statement 19/01/2016 - 18/02/2016 ,Adults and Communities,PAYPAL  PATIENTHAND,18/01/2016,16.9,Provisions - General,Laboratory/Medical/Dental/Ophthalmic Hospital Equi,GPC
Statement 19/01/2016 - 18/02/2016 ,Adults and Communities,PAYPAL  READREADING,02/02/2016,114,Other Services - General,Charitable and Social Service Organizations,GPC
Statement 19/01/2016 - 18/02/2016 ,Adults and Communities,PAYPAL  REDSTAR,02/02/2016,5.9,Other Equipment & Materials - General,Children's and Infants' Wear Stores,GPC
Statement 19/01/2016 - 18/02/2016 ,Adults and Communities,PAYPAL  REDSTEFF,02/02/2016,11.94,Other Equipment & Materials - General,Miscellaneous and Specialty Retail Stores,GPC
Statement 19/01/2016 - 18/02/2016 ,Adults and Communities,PAYPAL  STAMPSDIREC,09/02/2016,16.56,Stationery - General,"Stationery, Office, and School Supply Stores",GPC
Statement 19/01/2016 - 18/02/2016 ,Adults and Communities,PAYPAL  VOW RETAIL,02/02/2016,17.68,Stationery - General,Chemicals and Allied Products Not Elsewhere Classi,GPC
Statement 19/01/2016 - 18/02/2016 ,Adults and Communities,PAYPAL  WEEWIDETRAD,10/02/2016,46.99,Materials - General,Antique Shops,GPC
Statement 19/01/2016 - 18/02/2016 ,Adults and Communities,Photobox Limited,08/02/2016,8.74,Printing - General,Miscellaneous Publishing and  Printing,GPC
Statement 19/01/2016 - 18/02/2016 ,Adults and Communities,POST OFFICE COUNTER,19/01/2016,8.8,Postal Services - General,Postage Stamps,GPC
Statement 19/01/2016 - 18/02/2016 ,Adults and Communities,POST OFFICE COUNTER,21/01/2016,63,Postal Services - General,Postage Stamps,GPC
Statement 19/01/2016 - 18/02/2016 ,Adults and Communities,POST OFFICE COUNTER,01/02/2016,24.66,Postal Services - General,Postage Stamps,GPC
Statement 19/01/2016 - 18/02/2016 ,Adults and Communities,POST OFFICE COUNTER,11/02/2016,63,Postal Services - General,Postage Stamps,GPC
Statement 19/01/2016 - 18/02/2016 ,Adults and Communities,PP WANTED,25/01/2016,8.5,Other Equipment & Materials - General,Antique Shops,GPC
Statement 19/01/2016 - 18/02/2016 ,Adults and Communities,PRET A MANGER,12/02/2016,4.04,Other Expenditure - General,"Eating Places, Restaurants",GPC
Statement 19/01/2016 - 18/02/2016 ,Adults and Communities,READING B.C  PAYMENTS,08/02/2016,11.5,Other Expenditure - General,Government Services-Not Elsewhere Classified,GPC
Statement 19/01/2016 - 18/02/2016 ,Adults and Communities,RNIB CHARITY,02/02/2016,10.9,Other Equipment & Materials - General,Laboratory/Medical/Dental/Ophthalmic Hospital Equi,GPC
Statement 19/01/2016 - 18/02/2016 ,Adults and Communities,ROYAL MAIL,20/01/2016,54,Postal Services - General,Postage Stamps,GPC
Statement 19/01/2016 - 18/02/2016 ,Adults and Communities,ROYAL MAIL,26/01/2016,315,Postal Services - General,Postage Stamps,GPC
Statement 19/01/2016 - 18/02/2016 ,Adults and Communities,ROYAL MAIL,26/01/2016,352.8,Postal Services - General,Postage Stamps,GPC
Statement 19/01/2016 - 18/02/2016 ,Adults and Communities,ROYAL MAIL,27/01/2016,315,Postal Services - General,Postage Stamps,GPC
Statement 19/01/2016 - 18/02/2016 ,Adults and Communities,RUSELL COURT HOTEL,26/01/2016,-45,Subsistence - General,"Lodging-Hotels, Motels, Resorts",GPC
Statement 19/01/2016 - 18/02/2016 ,Adults and Communities,RUSELL COURT HOTEL,26/01/2016,401.67,Subsistence - General,"Lodging-Hotels, Motels, Resorts",GPC
Statement 19/01/2016 - 18/02/2016 ,Adults and Communities,RYMAN,01/02/2016,35.97,Display/Conservn/Exhibitions - Exhibitions,"Stationery, Office, and School Supply Stores",GPC
Statement 19/01/2016 - 18/02/2016 ,Adults and Communities,RYMAN,20/01/2016,15.84,Stationery - General,"Stationery, Office, and School Supply Stores",GPC
Statement 19/01/2016 - 18/02/2016 ,Adults and Communities,RYMAN,10/02/2016,14.32,Stationery - General,"Stationery, Office, and School Supply Stores",GPC
Statement 19/01/2016 - 18/02/2016 ,Adults and Communities,SAINSBURYS LOCAL,19/01/2016,4,Provisions - General,"Grocery Stores, Supermarkets",GPC
Statement 19/01/2016 - 18/02/2016 ,Adults and Communities,SAINSBURYS LOCAL,21/01/2016,5,Provisions - General,"Grocery Stores, Supermarkets",GPC
Statement 19/01/2016 - 18/02/2016 ,Adults and Communities,SAINSBURYS LOCAL,22/01/2016,6.85,Provisions - General,"Grocery Stores, Supermarkets",GPC
Statement 19/01/2016 - 18/02/2016 ,Adults and Communities,SAINSBURYS LOCAL,27/01/2016,4,Provisions - General,"Grocery Stores, Supermarkets",GPC
Statement 19/01/2016 - 18/02/2016 ,Adults and Communities,SAINSBURYS LOCAL,28/01/2016,5.1,Provisions - General,"Grocery Stores, Supermarkets",GPC
Statement 19/01/2016 - 18/02/2016 ,Adults and Communities,SAINSBURY'S PETROL,08/02/2016,35,Petrol/Oil/Tyres/Spares - General,Service Stations (with or without Ancillary Servic,GPC
Statement 19/01/2016 - 18/02/2016 ,Adults and Communities,SAINSBURY'S S/MKT,19/01/2016,160.55,Client/Volunteers - General,"Grocery Stores, Supermarkets",GPC
Statement 19/01/2016 - 18/02/2016 ,Adults and Communities,SAINSBURY'S S/MKT,02/02/2016,47.56,Display/Conservn/Exhibitions - Exhibitions,"Grocery Stores, Supermarkets",GPC
Statement 19/01/2016 - 18/02/2016 ,Adults and Communities,SAINSBURY'S S/MKT,31/01/2016,18.4,Materials - General,"Grocery Stores, Supermarkets",GPC
Statement 19/01/2016 - 18/02/2016 ,Adults and Communities,SAINSBURY'S S/MKT,09/02/2016,23.3,Stationery - General,"Grocery Stores, Supermarkets",GPC
Statement 19/01/2016 - 18/02/2016 ,Adults and Communities,SAINSBURYS S/MKTS,05/02/2016,37.55,Materials - General,"Grocery Stores, Supermarkets",GPC
Statement 19/01/2016 - 18/02/2016 ,Adults and Communities,Sainsburys S/mkts,11/02/2016,4.8,Materials - General,"Grocery Stores, Supermarkets",GPC
Statement 19/01/2016 - 18/02/2016 ,Adults and Communities,SAINSBURYS S/MKTS,15/02/2016,21.1,Materials - General,"Grocery Stores, Supermarkets",GPC
Statement 19/01/2016 - 18/02/2016 ,Adults and Communities,Sainsburys S/mkts,10/02/2016,2.95,Other Expenditure - General,"Grocery Stores, Supermarkets",GPC
Statement 19/01/2016 - 18/02/2016 ,Adults and Communities,SCREWFIX,02/02/2016,24.99,Aids & Adaptations - Minor Adaptations,"Building Materials, Lumber Stores",GPC
Statement 19/01/2016 - 18/02/2016 ,Adults and Communities,SECURITYSAFETYPRODUCTS,28/01/2016,86.58,General Equipment - General,"Detective Agencies, Protective Agencies, Security",GPC
Statement 19/01/2016 - 18/02/2016 ,Adults and Communities,SJD SUPPLIES LTD,18/01/2016,13.96,General Equipment - General,Miscellaneous and Specialty Retail Stores,GPC
Statement 19/01/2016 - 18/02/2016 ,Adults and Communities,SP  BEX MEIRIONWILLI,08/02/2016,21.89,Other Equipment & Materials - General,"Jewelry-Watches, Clocks, and Silverware Stores",GPC
Statement 19/01/2016 - 18/02/2016 ,Adults and Communities,SP  SHERWOOD DIA,09/02/2016,10.2,Stationery - General,Computer Software Stores,GPC
Statement 19/01/2016 - 18/02/2016 ,Adults and Communities,SPORTSDIRECT.COM,22/01/2016,12.99,Other Services - General,Sporting Goods Stores,GPC
Statement 19/01/2016 - 18/02/2016 ,Adults and Communities,STAFFORDSHIRE COUNTY C,19/01/2016,20,Other Expenditure - General,Government Services-Not Elsewhere Classified,GPC
Statement 19/01/2016 - 18/02/2016 ,Adults and Communities,STAPLES UK,22/01/2016,24.96,Stationery - General,"Stationery, Office, and School Supply Stores",GPC
Statement 19/01/2016 - 18/02/2016 ,Adults and Communities,SURVEYMONKEY.COM,12/02/2016,21.67,Publicity/Marketing - General,Computer Network/Information Services,GPC
Statement 19/01/2016 - 18/02/2016 ,Adults and Communities,TALKTALK BUSINESS,21/01/2016,50.9,Telephones - General,Telecommunication Service Including Local and Long,GPC
Statement 19/01/2016 - 18/02/2016 ,Adults and Communities,TESCO STORE 2846,21/01/2016,17.1,Personal Needs of Clients - General,"Grocery Stores, Supermarkets",GPC
Statement 19/01/2016 - 18/02/2016 ,Adults and Communities,TESCO STORES 5182,18/01/2016,134.23,Provisions - General,"Grocery Stores, Supermarkets",GPC
Statement 19/01/2016 - 18/02/2016 ,Adults and Communities,TESCO STORES 5182,22/01/2016,55.24,Provisions - General,"Grocery Stores, Supermarkets",GPC
Statement 19/01/2016 - 18/02/2016 ,Adults and Communities,TESCO STORES 5182,25/01/2016,114.13,Provisions - General,"Grocery Stores, Supermarkets",GPC
Statement 19/01/2016 - 18/02/2016 ,Adults and Communities,TESCO STORES 5182,29/01/2016,137.71,Provisions - General,"Grocery Stores, Supermarkets",GPC
Statement 19/01/2016 - 18/02/2016 ,Adults and Communities,TESCO STORES 5182,01/02/2016,106.76,Provisions - General,"Grocery Stores, Supermarkets",GPC
Statement 19/01/2016 - 18/02/2016 ,Adults and Communities,TESCO STORES 5182,05/02/2016,117.69,Provisions - General,"Grocery Stores, Supermarkets",GPC
Statement 19/01/2016 - 18/02/2016 ,Adults and Communities,TESCO STORES 5182,08/02/2016,71.81,Provisions - General,"Grocery Stores, Supermarkets",GPC
Statement 19/01/2016 - 18/02/2016 ,Adults and Communities,TESCO STORES 5182,08/02/2016,20,Provisions - General,"Grocery Stores, Supermarkets",GPC
Statement 19/01/2016 - 18/02/2016 ,Adults and Communities,TESCO STORES 5182,15/02/2016,121.76,Provisions - General,"Grocery Stores, Supermarkets",GPC
Statement 19/01/2016 - 18/02/2016 ,Adults and Communities,THREE-BILLPAY(CC),25/01/2016,29.98,Schools Agency staff - Support Staff,Telecommunication Service Including Local and Long,GPC
Statement 19/01/2016 - 18/02/2016 ,Adults and Communities,THREE-BILLPAY(CC),08/02/2016,29.98,Schools Agency staff - Support Staff,Telecommunication Service Including Local and Long,GPC
Statement 19/01/2016 - 18/02/2016 ,Adults and Communities,TIMPSON LTD,20/01/2016,25,Other Services - General,"Shoe Repair Shops, Shoe Shine Parlors, Hat Cleanin",GPC
Statement 19/01/2016 - 18/02/2016 ,Adults and Communities,TRAINLINE,20/01/2016,107.71,Public Transport -  Staff - General,Passenger Railways,GPC
Statement 19/01/2016 - 18/02/2016 ,Adults and Communities,TRAINLINE,26/01/2016,27.79,Public Transport -  Staff - General,Passenger Railways,GPC
Statement 19/01/2016 - 18/02/2016 ,Adults and Communities,TRAINLINE,05/02/2016,137.8,Public Transport -  Staff - General,Passenger Railways,GPC
Statement 19/01/2016 - 18/02/2016 ,Adults and Communities,TRAINLINE,15/02/2016,12.8,Public Transport -  Staff - General,Passenger Railways,GPC
Statement 19/01/2016 - 18/02/2016 ,Adults and Communities,TRINITY MIRROR PUBLISH,08/02/2016,382.8,Other Transfer Payments - General,Advertising Services,GPC
Statement 19/01/2016 - 18/02/2016 ,Adults and Communities,TVLICENSING.CO.UK,20/01/2016,145.5,Schools Agency staff - Teaching Staff,"Management, Consulting and Public Relations Servic",GPC
Statement 19/01/2016 - 18/02/2016 ,Adults and Communities,VERDON TIMBER GROUP LI,11/02/2016,8.68,Aids & Adaptations - Minor Adaptations,"Building Materials, Lumber Stores",GPC
Statement 19/01/2016 - 18/02/2016 ,Adults and Communities,W BOYES & CO LTD COALV,03/02/2016,33.1,Other Equipment & Materials - General,Discount Stores,GPC
Statement 19/01/2016 - 18/02/2016 ,Adults and Communities,W BOYES & CO LTD MELTO,01/02/2016,9.98,Display/Conservn/Exhibitions - Exhibitions,Discount Stores,GPC
Statement 19/01/2016 - 18/02/2016 ,Adults and Communities,W BOYES & CO LTD MELTO,01/02/2016,14.46,Display/Conservn/Exhibitions - Exhibitions,Discount Stores,GPC
Statement 19/01/2016 - 18/02/2016 ,Adults and Communities,WATERSTONES,15/02/2016,524.31,Books - General,Book Stores,GPC
Statement 19/01/2016 - 18/02/2016 ,Adults and Communities,WILKO RETAIL LIMIT,21/01/2016,4,Materials - General,Household Appliance Stores,GPC
Statement 19/01/2016 - 18/02/2016 ,Adults and Communities,WILKO RETAIL LIMIT,27/01/2016,58.78,Materials - General,Household Appliance Stores,GPC
Statement 19/01/2016 - 18/02/2016 ,Adults and Communities,WILKO RETAIL LIMIT,01/02/2016,21.05,Materials - General,Household Appliance Stores,GPC
Statement 19/01/2016 - 18/02/2016 ,Adults and Communities,WILKO RETAIL LIMIT,02/02/2016,4.65,Materials - General,Household Appliance Stores,GPC
Statement 19/01/2016 - 18/02/2016 ,Adults and Communities,WILKO RETAIL LIMIT,08/02/2016,8,Materials - General,Household Appliance Stores,GPC
Statement 19/01/2016 - 18/02/2016 ,Adults and Communities,WILKO RETAIL LIMIT,03/02/2016,10.05,Other Equipment & Materials - General,Household Appliance Stores,GPC
Statement 19/01/2016 - 18/02/2016 ,Adults and Communities,WM MORRISON 054,28/01/2016,98.62,Materials - General,"Grocery Stores, Supermarkets",GPC
Statement 19/01/2016 - 18/02/2016 ,Adults and Communities,WM MORRISON 054,05/02/2016,113.49,Materials - General,"Grocery Stores, Supermarkets",GPC
Statement 19/01/2016 - 18/02/2016 ,Adults and Communities,WM MORRISON 054,11/02/2016,26.1,Materials - General,"Grocery Stores, Supermarkets",GPC
Statement 19/01/2016 - 18/02/2016 ,Adults and Communities,WM MORRISON 054,11/02/2016,3,Materials - General,"Grocery Stores, Supermarkets",GPC
Statement 19/01/2016 - 18/02/2016 ,Adults and Communities,WM MORRISON 054,16/02/2016,29.7,Materials - General,"Grocery Stores, Supermarkets",GPC
Statement 19/01/2016 - 18/02/2016 ,Adults and Communities,WM MORRISONS,08/02/2016,30.4,Provisions - General,"Grocery Stores, Supermarkets",GPC
Statement 19/01/2016 - 18/02/2016 ,Adults and Communities,WP-HEALTH&SAFETY GRP,26/01/2016,58.8,Training Expenses - General,Miscellaneous and Specialty Retail Stores,GPC
Statement 19/01/2016 - 18/02/2016 ,Adults and Communities,WP-HEALTH&SAFETY GRP,26/01/2016,58.8,Training Expenses - General,Miscellaneous and Specialty Retail Stores,GPC
Statement 19/01/2016 - 18/02/2016 ,Adults and Communities,WP-HEALTH&SAFETY GRP,26/01/2016,58.8,Training Expenses - General,Misc-Unknown,GPC
Statement 19/01/2016 - 18/02/2016 ,Adults and Communities,WP-STAMPS DIRECT L,10/02/2016,37.86,Stationery - General,"Stationery, Office, and School Supply Stores",GPC
Statement 19/01/2016 - 18/02/2016 ,Adults and Communities,WWW.BAKERROSS.CO.UK,20/01/2016,366.24,Display/Conservn/Exhibitions - Exhibitions,"Artist Supply Stores, Craft Shops",GPC
Statement 19/01/2016 - 18/02/2016 ,Adults and Communities,WWW.COOPELECTRICAL,03/02/2016,163.32,Stationery - General,Household Appliance Stores,GPC
Statement 19/01/2016 - 18/02/2016 ,Adults and Communities,WWW.DERBY.GOV.UK,27/01/2016,11.2,Other Expenditure - General,Government Services-Not Elsewhere Classified,GPC
Statement 19/01/2016 - 18/02/2016 ,Adults and Communities,WWW.DERBY.GOV.UK,27/01/2016,11.2,Other Expenditure - General,Government Services-Not Elsewhere Classified,GPC
Statement 19/01/2016 - 18/02/2016 ,Adults and Communities,WWW.GOLEICESTERSHIRE.C,10/02/2016,65.86,Casual/Essential - General,Travel Agencies,GPC
Statement 19/01/2016 - 18/02/2016 ,Adults and Communities,WWW.HELIX.CO.UK,04/02/2016,11.28,Stationery - General,"Stationery, Office, and School Supply Stores",GPC
Statement 19/01/2016 - 18/02/2016 ,Adults and Communities,WWW.NHM.AC.UK,11/02/2016,20,Display/Conservn/Exhibitions - Exhibitions,"Artist Supply Stores, Craft Shops",GPC
Statement 19/01/2016 - 18/02/2016 ,Adults and Communities,WWW.ROMPALIMITED.COM,02/02/2016,95.94,Other Equipment & Materials - General,Miscellaneous and Specialty Retail Stores,GPC
Statement 19/01/2016 - 18/02/2016 ,Adults and Communities,WWW.ROMPALTD.COM,28/01/2016,32.29,Other Services - General,Miscellaneous and Specialty Retail Stores,GPC
Statement 19/01/2016 - 18/02/2016 ,Adults and Communities,WWW.ROYALMAIL.COM,01/02/2016,340.25,Postal Services - General,Postage Stamps,GPC
Statement 19/01/2016 - 18/02/2016 ,Adults and Communities,WWW.RYMAN.CO.UK,15/02/2016,80.96,Stationery - General,"Stationery, Office, and School Supply Stores",GPC
Statement 19/01/2016 - 18/02/2016 ,Adults and Communities,WWW.THEPLASMACENTRE.CO,27/01/2016,-133.3,Other Services - General,Business Services-Not Elsewhere Classified,GPC
Statement 19/01/2016 - 18/02/2016 ,Adults and Communities,WWW.ZEN.CO.UK,28/01/2016,34.76,Telephones - General,Computer Network/Information Services,GPC
Statement 19/01/2016 - 18/02/2016 ,C&YPS-Non Delegated,99P STORES LTD,10/02/2016,18.49,Materials - General,"Grocery Stores, Supermarkets",GPC
Statement 19/01/2016 - 18/02/2016 ,C&YPS-Non Delegated,A B WALLACE ENGRAVING,20/01/2016,59.5,Other Expenditure - General,Miscellaneous and Specialty Retail Stores,GPC
Statement 19/01/2016 - 18/02/2016 ,C&YPS-Non Delegated,ABLE GROUP UK,28/01/2016,98.6,Other Transfer Payments - Sector 17- Other,Business Services-Not Elsewhere Classified,GPC
Statement 19/01/2016 - 18/02/2016 ,C&YPS-Non Delegated,ALDI,01/02/2016,25.87,Other Expenditure - General,"Grocery Stores, Supermarkets",GPC
Statement 19/01/2016 - 18/02/2016 ,C&YPS-Non Delegated,ALDI,15/02/2016,25.83,Other Expenditure - General,"Grocery Stores, Supermarkets",GPC
Statement 19/01/2016 - 18/02/2016 ,C&YPS-Non Delegated,ALDI,19/01/2016,46.77,Provisions - General,"Grocery Stores, Supermarkets",GPC
Statement 19/01/2016 - 18/02/2016 ,C&YPS-Non Delegated,ALDI,22/01/2016,17.87,Provisions - General,"Grocery Stores, Supermarkets",GPC
Statement 19/01/2016 - 18/02/2016 ,C&YPS-Non Delegated,ALDI,28/01/2016,13.16,Provisions - General,"Grocery Stores, Supermarkets",GPC
Statement 19/01/2016 - 18/02/2016 ,C&YPS-Non Delegated,ALDI,08/02/2016,41.65,Provisions - General,"Grocery Stores, Supermarkets",GPC
Statement 19/01/2016 - 18/02/2016 ,C&YPS-Non Delegated,ALDI,16/02/2016,84.66,Provisions - General,"Grocery Stores, Supermarkets",GPC
Statement 19/01/2016 - 18/02/2016 ,C&YPS-Non Delegated,ALLPAY MOTO (CALLPAY/IVR,25/01/2016,109.32,Other Services - General,Charitable and Social Service Organizations,GPC
Statement 19/01/2016 - 18/02/2016 ,C&YPS-Non Delegated,Amazon Svcs Europe SAR,12/02/2016,3.75,Materials - General,Book Stores,GPC
Statement 19/01/2016 - 18/02/2016 ,C&YPS-Non Delegated,Amazon Svcs Europe SAR,22/01/2016,40.93,Other Equipment & Materials - General,Book Stores,GPC
Statement 19/01/2016 - 18/02/2016 ,C&YPS-Non Delegated,Amazon UK Marketplace,26/01/2016,180.67,Books - General,Book Stores,GPC
Statement 19/01/2016 - 18/02/2016 ,C&YPS-Non Delegated,Amazon UK Marketplace,03/02/2016,92.73,General Equipment - General,Book Stores,GPC
Statement 19/01/2016 - 18/02/2016 ,C&YPS-Non Delegated,Amazon UK Marketplace,03/02/2016,26.99,General Equipment - General,Book Stores,GPC
Statement 19/01/2016 - 18/02/2016 ,C&YPS-Non Delegated,Amazon UK Marketplace,08/02/2016,34.06,General Equipment - General,Miscellaneous and Specialty Retail Stores,GPC
Statement 19/01/2016 - 18/02/2016 ,C&YPS-Non Delegated,Amazon UK Marketplace,27/01/2016,71.97,Materials - General,Miscellaneous and Specialty Retail Stores,GPC
Statement 19/01/2016 - 18/02/2016 ,C&YPS-Non Delegated,Amazon UK Marketplace,28/01/2016,-180.67,Materials - General,Miscellaneous and Specialty Retail Stores,GPC
Statement 19/01/2016 - 18/02/2016 ,C&YPS-Non Delegated,Amazon UK Marketplace,04/02/2016,69.8,Materials - General,Miscellaneous and Specialty Retail Stores,GPC
Statement 19/01/2016 - 18/02/2016 ,C&YPS-Non Delegated,Amazon UK Marketplace,12/02/2016,12.95,Materials - General,Miscellaneous and Specialty Retail Stores,GPC
Statement 19/01/2016 - 18/02/2016 ,C&YPS-Non Delegated,Amazon UK Marketplace,14/02/2016,31.19,Materials - General,Book Stores,GPC
Statement 19/01/2016 - 18/02/2016 ,C&YPS-Non Delegated,Amazon UK Marketplace,02/02/2016,5.49,Operational Equipment - General,Book Stores,GPC
Statement 19/01/2016 - 18/02/2016 ,C&YPS-Non Delegated,Amazon UK Marketplace,20/01/2016,3,Other Equipment & Materials - General,Book Stores,GPC
Statement 19/01/2016 - 18/02/2016 ,C&YPS-Non Delegated,Amazon UK Marketplace,28/01/2016,23.38,Other Equipment & Materials - General,Miscellaneous and Specialty Retail Stores,GPC
Statement 19/01/2016 - 18/02/2016 ,C&YPS-Non Delegated,Amazon UK Marketplace,29/01/2016,11.98,Other Equipment & Materials - General,Book Stores,GPC
Statement 19/01/2016 - 18/02/2016 ,C&YPS-Non Delegated,Amazon UK Marketplace,10/02/2016,299.94,Other Equipment & Materials - General,Miscellaneous and Specialty Retail Stores,GPC
Statement 19/01/2016 - 18/02/2016 ,C&YPS-Non Delegated,Amazon UK Marketplace,11/02/2016,5.98,Other Equipment & Materials - General,Miscellaneous and Specialty Retail Stores,GPC
Statement 19/01/2016 - 18/02/2016 ,C&YPS-Non Delegated,Amazon UK Marketplace,20/01/2016,20.73,Stationery - General,Miscellaneous and Specialty Retail Stores,GPC
Statement 19/01/2016 - 18/02/2016 ,C&YPS-Non Delegated,Amazon UK Marketplace,21/01/2016,38,Stationery - General,Miscellaneous and Specialty Retail Stores,GPC
Statement 19/01/2016 - 18/02/2016 ,C&YPS-Non Delegated,Amazon UK Retail,02/02/2016,4.76,General Equipment - General,Direct Marketers - Other,GPC
Statement 19/01/2016 - 18/02/2016 ,C&YPS-Non Delegated,Amazon UK Retail,09/02/2016,14.38,General Equipment - General,Direct Marketers - Other,GPC
Statement 19/01/2016 - 18/02/2016 ,C&YPS-Non Delegated,Amazon UK Retail,04/02/2016,60.49,Materials - General,Direct Marketers - Other,GPC
Statement 19/01/2016 - 18/02/2016 ,C&YPS-Non Delegated,Amazon UK Retail,13/02/2016,1.71,Materials - General,Direct Marketers - Other,GPC
Statement 19/01/2016 - 18/02/2016 ,C&YPS-Non Delegated,Amazon UK Retail,18/01/2016,12.18,Other Expenditure - General,Direct Marketers - Other,GPC
Statement 19/01/2016 - 18/02/2016 ,C&YPS-Non Delegated,Amazon UK Retail,18/01/2016,44,Other Expenditure - General,Direct Marketers - Other,GPC
Statement 19/01/2016 - 18/02/2016 ,C&YPS-Non Delegated,Amazon UK Retail,18/01/2016,27.96,Other Expenditure - General,Direct Marketers - Other,GPC
Statement 19/01/2016 - 18/02/2016 ,C&YPS-Non Delegated,Amazon UK Retail,18/01/2016,31.6,Other Expenditure - General,Direct Marketers - Other,GPC
Statement 19/01/2016 - 18/02/2016 ,C&YPS-Non Delegated,Amazon UK Retail,01/02/2016,8.1,Other Expenditure - General,Direct Marketers - Other,GPC
Statement 19/01/2016 - 18/02/2016 ,C&YPS-Non Delegated,Amazon UK Retail,04/02/2016,8.48,Other Expenditure - General,Direct Marketers - Other,GPC
Statement 19/01/2016 - 18/02/2016 ,C&YPS-Non Delegated,Amazon UK Retail,05/02/2016,38.95,Other Expenditure - General,Direct Marketers - Other,GPC
Statement 19/01/2016 - 18/02/2016 ,C&YPS-Non Delegated,Amazon UK Retail,09/02/2016,21.29,Stationery - General,Direct Marketers - Other,GPC
Statement 19/01/2016 - 18/02/2016 ,C&YPS-Non Delegated,Amazon UK Retail,11/02/2016,-21.29,Stationery - General,Direct Marketers - Other,GPC
Statement 19/01/2016 - 18/02/2016 ,C&YPS-Non Delegated,AMFBOWLING.CO.UK,09/02/2016,94.81,Other Equipment & Materials - General,Bowling Alleys,GPC
Statement 19/01/2016 - 18/02/2016 ,C&YPS-Non Delegated,AMFBOWLING.CO.UK,16/02/2016,31.54,Provisions - General,"Membership Clubs (Sports, Recreation, Athletic), C",GPC
Statement 19/01/2016 - 18/02/2016 ,C&YPS-Non Delegated,AO RETAIL LIMITED,18/01/2016,279,Materials - General,Household Appliance Stores,GPC
Statement 19/01/2016 - 18/02/2016 ,C&YPS-Non Delegated,ARGOS LTD,18/01/2016,18.97,General Equipment - General,Discount Stores,GPC
Statement 19/01/2016 - 18/02/2016 ,C&YPS-Non Delegated,ARGOS LTD,02/02/2016,127.26,Materials - General,Discount Stores,GPC
Statement 19/01/2016 - 18/02/2016 ,C&YPS-Non Delegated,ARGOS LTD,28/01/2016,9.49,Other Equipment & Materials - General,Discount Stores,GPC
Statement 19/01/2016 - 18/02/2016 ,C&YPS-Non Delegated,ARGOS LTD,12/02/2016,15.14,Other Equipment & Materials - General,Discount Stores,GPC
Statement 19/01/2016 - 18/02/2016 ,C&YPS-Non Delegated,ARGOS RETAIL GROUP,21/01/2016,18.94,Other Equipment & Materials - General,Discount Stores,GPC
Statement 19/01/2016 - 18/02/2016 ,C&YPS-Non Delegated,ARGOS RETAIL GROUP,21/01/2016,368.93,Other Transfer Payments - Leaving Care Grants,Discount Stores,GPC
Statement 19/01/2016 - 18/02/2016 ,C&YPS-Non Delegated,ARGOS RETAIL GROUP,22/01/2016,178.94,Other Transfer Payments - Leaving Care Grants,Discount Stores,GPC
Statement 19/01/2016 - 18/02/2016 ,C&YPS-Non Delegated,ARGOS RETAIL GROUP,29/01/2016,169.98,Other Transfer Payments - Leaving Care Grants,Discount Stores,GPC
Statement 19/01/2016 - 18/02/2016 ,C&YPS-Non Delegated,ASDA HOME SHOPPING,18/01/2016,29.71,Other Expenditure - General,"Grocery Stores, Supermarkets",GPC
Statement 19/01/2016 - 18/02/2016 ,C&YPS-Non Delegated,ASDA HOME SHOPPING,18/01/2016,-0.6,Other Expenditure - General,"Grocery Stores, Supermarkets",GPC
Statement 19/01/2016 - 18/02/2016 ,C&YPS-Non Delegated,ASDA STORES,26/01/2016,11.12,Other Equipment & Materials - General,"Grocery Stores, Supermarkets",GPC
Statement 19/01/2016 - 18/02/2016 ,C&YPS-Non Delegated,ASDA SUPERSTORE,08/02/2016,8,Furniture - General,"Grocery Stores, Supermarkets",GPC
Statement 19/01/2016 - 18/02/2016 ,C&YPS-Non Delegated,ASDA SUPERSTORE,18/01/2016,8.4,Materials - General,"Grocery Stores, Supermarkets",GPC
Statement 19/01/2016 - 18/02/2016 ,C&YPS-Non Delegated,ASDA SUPERSTORE,25/01/2016,209.71,Materials - General,"Grocery Stores, Supermarkets",GPC
Statement 19/01/2016 - 18/02/2016 ,C&YPS-Non Delegated,ASDA SUPERSTORE,26/01/2016,5,Materials - General,"Grocery Stores, Supermarkets",GPC
Statement 19/01/2016 - 18/02/2016 ,C&YPS-Non Delegated,ASDA SUPERSTORE,03/02/2016,8.88,Materials - General,"Grocery Stores, Supermarkets",GPC
Statement 19/01/2016 - 18/02/2016 ,C&YPS-Non Delegated,ASDA SUPERSTORE,08/02/2016,20.93,Materials - General,"Grocery Stores, Supermarkets",GPC
Statement 19/01/2016 - 18/02/2016 ,C&YPS-Non Delegated,ASDA SUPERSTORE,08/02/2016,32.4,Materials - General,"Grocery Stores, Supermarkets",GPC
Statement 19/01/2016 - 18/02/2016 ,C&YPS-Non Delegated,ASDA SUPERSTORE,10/02/2016,37.06,Personal Needs of Clients - General,"Grocery Stores, Supermarkets",GPC
Statement 19/01/2016 - 18/02/2016 ,C&YPS-Non Delegated,ASDA SUPERSTORE,01/02/2016,149.26,Provisions - General,"Grocery Stores, Supermarkets",GPC
Statement 19/01/2016 - 18/02/2016 ,C&YPS-Non Delegated,ASDA SUPERSTORE,02/02/2016,144.11,Provisions - General,"Grocery Stores, Supermarkets",GPC
Statement 19/01/2016 - 18/02/2016 ,C&YPS-Non Delegated,ASDA SUPERSTORE,09/02/2016,48.27,Provisions - General,"Grocery Stores, Supermarkets",GPC
Statement 19/01/2016 - 18/02/2016 ,C&YPS-Non Delegated,ASH BANK HOTEL,02/02/2016,3.38,Subsistence - General,"Eating Places, Restaurants",GPC
Statement 19/01/2016 - 18/02/2016 ,C&YPS-Non Delegated,B & M RETAIL,02/02/2016,53.94,Materials - General,Discount Stores,GPC
Statement 19/01/2016 - 18/02/2016 ,C&YPS-Non Delegated,B & M RETAIL,02/02/2016,77.84,Materials - General,Discount Stores,GPC
Statement 19/01/2016 - 18/02/2016 ,C&YPS-Non Delegated,B & Q,21/01/2016,46.36,Other Equipment & Materials - General,"Building Materials, Lumber Stores",GPC
Statement 19/01/2016 - 18/02/2016 ,C&YPS-Non Delegated,B&M Retail,08/02/2016,172.25,General Equipment - General,Discount Stores,GPC
Statement 19/01/2016 - 18/02/2016 ,C&YPS-Non Delegated,B&M RETAIL LTD,16/02/2016,11.95,Materials - General,Discount Stores,GPC
Statement 19/01/2016 - 18/02/2016 ,C&YPS-Non Delegated,BHS 128,01/02/2016,15.95,Subsistence - General,Department Stores,GPC
Statement 19/01/2016 - 18/02/2016 ,C&YPS-Non Delegated,BOOTS 6500,19/01/2016,78,Other Transfer Payments - Section 23 Grants,"Drug Stores, Pharmacies",GPC
Statement 19/01/2016 - 18/02/2016 ,C&YPS-Non Delegated,BRITISH HEART FOUNDATI,26/01/2016,100,Other Services - General,Charitable and Social Service Organizations,GPC
Statement 19/01/2016 - 18/02/2016 ,C&YPS-Non Delegated,BRITISH HEART FOUNDATI,26/01/2016,425,Other Services - General,Charitable and Social Service Organizations,GPC
Statement 19/01/2016 - 18/02/2016 ,C&YPS-Non Delegated,BRITISH HEART FOUNDATI,29/01/2016,-275,Other Services - General,Charitable and Social Service Organizations,GPC
Statement 19/01/2016 - 18/02/2016 ,C&YPS-Non Delegated,BT BILL PAYMENT 1,21/01/2016,55.89,Telephones - General,Telecommunication Equipment Including Telephone Sa,GPC
Statement 19/01/2016 - 18/02/2016 ,C&YPS-Non Delegated,BT BILL PAYMENT 1,21/01/2016,74.92,Telephones - General,Telecommunication Equipment Including Telephone Sa,GPC
Statement 19/01/2016 - 18/02/2016 ,C&YPS-Non Delegated,BT BILL PAYMENT 1,21/01/2016,63,Telephones - General,Telecommunication Equipment Including Telephone Sa,GPC
Statement 19/01/2016 - 18/02/2016 ,C&YPS-Non Delegated,BT BILL PAYMENT 1,21/01/2016,55.89,Telephones - General,Telecommunication Equipment Including Telephone Sa,GPC
Statement 19/01/2016 - 18/02/2016 ,C&YPS-Non Delegated,BT BILL PAYMENT 1,15/02/2016,73.81,Telephones - General,Telecommunication Equipment Including Telephone Sa,GPC
Statement 19/01/2016 - 18/02/2016 ,C&YPS-Non Delegated,BT BILL PAYMENT 1,12/02/2016,75.6,Telephones - Mobile Phones,Telecommunication Equipment Including Telephone Sa,GPC
Statement 19/01/2016 - 18/02/2016 ,C&YPS-Non Delegated,BT BILL PAYMENT 2,20/01/2016,165.7,Telephones - General,Telecommunication Equipment Including Telephone Sa,GPC
Statement 19/01/2016 - 18/02/2016 ,C&YPS-Non Delegated,BT BILL PAYMENT 2,22/01/2016,55.89,Telephones - General,Telecommunication Equipment Including Telephone Sa,GPC
Statement 19/01/2016 - 18/02/2016 ,C&YPS-Non Delegated,BT BILL PAYMENT 2,22/01/2016,55.89,Telephones - General,Telecommunication Equipment Including Telephone Sa,GPC
Statement 19/01/2016 - 18/02/2016 ,C&YPS-Non Delegated,BT BILL PAYMENT 2,02/02/2016,80.97,Telephones - Mobile Phones,Telecommunication Equipment Including Telephone Sa,GPC
Statement 19/01/2016 - 18/02/2016 ,C&YPS-Non Delegated,BT PAY BY PHONE,29/01/2016,107.75,Telephones - General,Telecommunication Service Including Local and Long,GPC
Statement 19/01/2016 - 18/02/2016 ,C&YPS-Non Delegated,CARD FACTORY,22/01/2016,8.31,Materials - General,"Gift, Card, Novelty, and Souvenir Shops",GPC
Statement 19/01/2016 - 18/02/2016 ,C&YPS-Non Delegated,CENTRAL ENG COOP,20/01/2016,11.54,Materials - General,Department Stores,GPC
Statement 19/01/2016 - 18/02/2016 ,C&YPS-Non Delegated,CENTRAL ENG COOP,03/02/2016,8.35,Materials - General,Department Stores,GPC
Statement 19/01/2016 - 18/02/2016 ,C&YPS-Non Delegated,CENTRAL ENG COOP,11/02/2016,20.25,Materials - General,Department Stores,GPC
Statement 19/01/2016 - 18/02/2016 ,C&YPS-Non Delegated,CENTRAL ENG COOP,12/02/2016,-20.25,Materials - General,Department Stores,GPC
Statement 19/01/2016 - 18/02/2016 ,C&YPS-Non Delegated,CENTRAL ENG COOP,21/01/2016,7.73,Other Equipment & Materials - General,Department Stores,GPC
Statement 19/01/2016 - 18/02/2016 ,C&YPS-Non Delegated,CENTRAL ENG COOP,16/02/2016,4.12,Other Equipment & Materials - General,Department Stores,GPC
Statement 19/01/2016 - 18/02/2016 ,C&YPS-Non Delegated,CENTRAL ENG COOP,16/02/2016,11.9,Other Equipment & Materials - General,Department Stores,GPC
Statement 19/01/2016 - 18/02/2016 ,C&YPS-Non Delegated,CORAM ACADEMY LTD,25/01/2016,130,Other Services - General,Charitable and Social Service Organizations,GPC
Statement 19/01/2016 - 18/02/2016 ,C&YPS-Non Delegated,COSTA COFFEE,19/01/2016,8.4,Provisions - General,"Eating Places, Restaurants",GPC
Statement 19/01/2016 - 18/02/2016 ,C&YPS-Non Delegated,CURRYS ONLINE,26/01/2016,389.98,Materials - General,"RADIO, TELEVISION, AND STEREO STORES (ELECTRONIC STORES)",GPC
Statement 19/01/2016 - 18/02/2016 ,C&YPS-Non Delegated,CURRYS ONLINE,26/01/2016,159.99,Materials - General,"RADIO, TELEVISION, AND STEREO STORES (ELECTRONIC STORES)",GPC
Statement 19/01/2016 - 18/02/2016 ,C&YPS-Non Delegated,CURRYS ONLINE,26/01/2016,-70,Materials - General,"RADIO, TELEVISION, AND STEREO STORES (ELECTRONIC STORES)",GPC
Statement 19/01/2016 - 18/02/2016 ,C&YPS-Non Delegated,CURRYS ONLINE,26/01/2016,-159.99,Materials - General,"RADIO, TELEVISION, AND STEREO STORES (ELECTRONIC STORES)",GPC
Statement 19/01/2016 - 18/02/2016 ,C&YPS-Non Delegated,DELICE FINE FOODS LTD,28/01/2016,28.15,Subsistence - General,Fast-Food Restaurants (Quick Payment Service Pilot,GPC
Statement 19/01/2016 - 18/02/2016 ,C&YPS-Non Delegated,DISCLOSURE SCOT,28/01/2016,25,Other Equipment & Materials - General,Government Services-Not Elsewhere Classified,GPC
Statement 19/01/2016 - 18/02/2016 ,C&YPS-Non Delegated,DOMINOS PIZZA WIGS,28/01/2016,39.47,Other Equipment & Materials - General,"Eating Places, Restaurants",GPC
Statement 19/01/2016 - 18/02/2016 ,C&YPS-Non Delegated,DUNELM LTD,03/02/2016,41.98,Other Equipment & Materials - General,"Drapery, Window Coverings, and Upholstery Stores",GPC
Statement 19/01/2016 - 18/02/2016 ,C&YPS-Non Delegated,DVLA DRIVER ONLINE,09/02/2016,20,Other Expenditure - General,Government Services-Not Elsewhere Classified,GPC
Statement 19/01/2016 - 18/02/2016 ,C&YPS-Non Delegated,ESPO,28/01/2016,101.25,Stationery - General,Government Services-Not Elsewhere Classified,GPC
Statement 19/01/2016 - 18/02/2016 ,C&YPS-Non Delegated,EXPEDIA 110727049513,20/01/2016,7,Other Transfer Payments - Section 23 Grants,Travel Agencies,GPC
Statement 19/01/2016 - 18/02/2016 ,C&YPS-Non Delegated,FREEWAY FLEET MANAGEMENT,28/01/2016,57.49,Contract Hire - General,Automobile Rental Agency,GPC
Statement 19/01/2016 - 18/02/2016 ,C&YPS-Non Delegated,FUSION LOUGHBOROUGH LE,12/02/2016,4.65,Other Equipment & Materials - General,"Membership Clubs (Sports, Recreation, Athletic), C",GPC
Statement 19/01/2016 - 18/02/2016 ,C&YPS-Non Delegated,FUSION SOAR VALLEY LEI,27/01/2016,10.9,Other Equipment & Materials - General,"Membership Clubs (Sports, Recreation, Athletic), C",GPC
Statement 19/01/2016 - 18/02/2016 ,C&YPS-Non Delegated,GL1 LESUIRE CENTRE,12/02/2016,10.95,Other Transfer Payments - Section 23 Grants,Government Services-Not Elsewhere Classified,GPC
Statement 19/01/2016 - 18/02/2016 ,C&YPS-Non Delegated,GOOSEBERRY BUSH,22/01/2016,202.94,Other Transfer Payments - Section 23 Grants,Child Care Services,GPC
Statement 19/01/2016 - 18/02/2016 ,C&YPS-Non Delegated,GREAT LITTLE TRADINGCO,02/02/2016,27.95,Other Equipment & Materials - General,"Furniture, Home Furnishings and Equipment Stores,",GPC
Statement 19/01/2016 - 18/02/2016 ,C&YPS-Non Delegated,GRO HM PASSPORT OFFICE,10/02/2016,9.25,Other Expenditure - General,Government Services-Not Elsewhere Classified,GPC
Statement 19/01/2016 - 18/02/2016 ,C&YPS-Non Delegated,GRO HM PASSPORT OFFICE,01/02/2016,9.25,Other Transfer Payments - Section 23 Grants,Government Services-Not Elsewhere Classified,GPC
Statement 19/01/2016 - 18/02/2016 ,C&YPS-Non Delegated,GRO HM PASSPORT OFFICE,12/02/2016,9.25,Other Transfer Payments - Section 23 Grants,Government Services-Not Elsewhere Classified,GPC
Statement 19/01/2016 - 18/02/2016 ,C&YPS-Non Delegated,HMCOURTS-SERVICE.G,12/02/2016,10,Other Transfer Payments - Section 24,Fines,GPC
Statement 19/01/2016 - 18/02/2016 ,C&YPS-Non Delegated,HOMEBASE LTD,03/02/2016,30.92,R & M of Buildings - General,"Building Materials, Lumber Stores",GPC
Statement 19/01/2016 - 18/02/2016 ,C&YPS-Non Delegated,HOMEBASE LTD,05/02/2016,137.7,R & M of Buildings - General,"Building Materials, Lumber Stores",GPC
Statement 19/01/2016 - 18/02/2016 ,C&YPS-Non Delegated,HOMEBASE LTD,07/02/2016,17.08,R & M of Buildings - General,"Building Materials, Lumber Stores",GPC
Statement 19/01/2016 - 18/02/2016 ,C&YPS-Non Delegated,HOMEBASE LTD 088,31/01/2016,5.21,Other Equipment & Materials - General,"Building Materials, Lumber Stores",GPC
Statement 19/01/2016 - 18/02/2016 ,C&YPS-Non Delegated,HOOD PARK LEISURE,11/02/2016,17.5,Subscriptions - General,Government Services-Not Elsewhere Classified,GPC
Statement 19/01/2016 - 18/02/2016 ,C&YPS-Non Delegated,HOTEL IBIS LEICESTER C,24/01/2016,226,Other Transfer Payments - Section 23 Grants,"Lodging-Hotels, Motels, Resorts",GPC
Statement 19/01/2016 - 18/02/2016 ,C&YPS-Non Delegated,HOTEL IBIS LEICESTER C,30/01/2016,226,Other Transfer Payments - Section 23 Grants,"Lodging-Hotels, Motels, Resorts",GPC
Statement 19/01/2016 - 18/02/2016 ,C&YPS-Non Delegated,HOTEL IBIS LEICESTER C,30/01/2016,-226,Other Transfer Payments - Section 23 Grants,"Lodging-Hotels, Motels, Resorts",GPC
Statement 19/01/2016 - 18/02/2016 ,C&YPS-Non Delegated,IKEA,22/01/2016,144.08,Other Equipment & Materials - General,Miscellaneous House Furnishing Specialty Shops,GPC
Statement 19/01/2016 - 18/02/2016 ,C&YPS-Non Delegated,IKEA,22/01/2016,413.87,Other Equipment & Materials - General,Miscellaneous House Furnishing Specialty Shops,GPC
Statement 19/01/2016 - 18/02/2016 ,C&YPS-Non Delegated,IKEA ONLINE,03/02/2016,654.17,General Equipment - General,Miscellaneous House Furnishing Specialty Shops,GPC
Statement 19/01/2016 - 18/02/2016 ,C&YPS-Non Delegated,IKEA ONLINE,25/01/2016,105,Materials - General,Miscellaneous House Furnishing Specialty Shops,GPC
Statement 19/01/2016 - 18/02/2016 ,C&YPS-Non Delegated,ITUNES.COM/BILL,16/02/2016,3.33,IT Equipment - General,Record Shops,GPC
Statement 19/01/2016 - 18/02/2016 ,C&YPS-Non Delegated,KFC - LOUGHBOROUGH,25/01/2016,2.98,Other Equipment & Materials - General,Fast-Food Restaurants (Quick Payment Service Pilot,GPC
Statement 19/01/2016 - 18/02/2016 ,C&YPS-Non Delegated,KFC - LOUGHBOROUGH,08/02/2016,5.46,Other Expenditure - General,Fast-Food Restaurants (Quick Payment Service Pilot,GPC
Statement 19/01/2016 - 18/02/2016 ,C&YPS-Non Delegated,LCC CATERING SERVICES,10/02/2016,4.64,Other Expenditure - General,Government Services-Not Elsewhere Classified,GPC
Statement 19/01/2016 - 18/02/2016 ,C&YPS-Non Delegated,LCC CATERING SERVICES,10/02/2016,3.78,Postal Services - General,Government Services-Not Elsewhere Classified,GPC
Statement 19/01/2016 - 18/02/2016 ,C&YPS-Non Delegated,LEIC CITY COUNCIL,02/02/2016,23,Other Expenditure - General,Government Services-Not Elsewhere Classified,GPC
Statement 19/01/2016 - 18/02/2016 ,C&YPS-Non Delegated,LEIC CITY COUNCIL,03/02/2016,-20,Other Expenditure - General,Government Services-Not Elsewhere Classified,GPC
Statement 19/01/2016 - 18/02/2016 ,C&YPS-Non Delegated,LEIC CITY COUNCIL,05/02/2016,33,Other Expenditure - General,Government Services-Not Elsewhere Classified,GPC
Statement 19/01/2016 - 18/02/2016 ,C&YPS-Non Delegated,LEIC CITY COUNCIL,10/02/2016,13,Other Expenditure - General,Government Services-Not Elsewhere Classified,GPC
Statement 19/01/2016 - 18/02/2016 ,C&YPS-Non Delegated,LEIC CITY COUNCIL,10/02/2016,13,Other Expenditure - General,Government Services-Not Elsewhere Classified,GPC
Statement 19/01/2016 - 18/02/2016 ,C&YPS-Non Delegated,LEIC CITY COUNCIL,10/02/2016,13,Other Expenditure - General,Government Services-Not Elsewhere Classified,GPC
Statement 19/01/2016 - 18/02/2016 ,C&YPS-Non Delegated,LEIC CITY COUNCIL,26/01/2016,13,Other Transfer Payments - Section 23 Grants,Government Services-Not Elsewhere Classified,GPC
Statement 19/01/2016 - 18/02/2016 ,C&YPS-Non Delegated,LEIC CITY COUNCIL,26/01/2016,33,Other Transfer Payments - Section 23 Grants,Government Services-Not Elsewhere Classified,GPC
Statement 19/01/2016 - 18/02/2016 ,C&YPS-Non Delegated,LEIC CITY COUNCIL,26/01/2016,13,Other Transfer Payments - Section 23 Grants,Government Services-Not Elsewhere Classified,GPC
Statement 19/01/2016 - 18/02/2016 ,C&YPS-Non Delegated,LEIC CITY COUNCIL,26/01/2016,13,Other Transfer Payments - Section 23 Grants,Government Services-Not Elsewhere Classified,GPC
Statement 19/01/2016 - 18/02/2016 ,C&YPS-Non Delegated,LEIC CITY COUNCIL,05/02/2016,13,Other Transfer Payments - Section 23 Grants,Government Services-Not Elsewhere Classified,GPC
Statement 19/01/2016 - 18/02/2016 ,C&YPS-Non Delegated,LEIC CITY COUNCIL,05/02/2016,13,Other Transfer Payments - Section 23 Grants,Government Services-Not Elsewhere Classified,GPC
Statement 19/01/2016 - 18/02/2016 ,C&YPS-Non Delegated,LEIC CITY COUNCIL,08/02/2016,13,Other Transfer Payments - Section 23 Grants,Government Services-Not Elsewhere Classified,GPC
Statement 19/01/2016 - 18/02/2016 ,C&YPS-Non Delegated,LEIC CITY COUNCIL,08/02/2016,13,Other Transfer Payments - Section 23 Grants,Government Services-Not Elsewhere Classified,GPC
Statement 19/01/2016 - 18/02/2016 ,C&YPS-Non Delegated,LEICESTERSHIRE C COUNC,03/02/2016,0.1,Other Expenditure - General,Government Services-Not Elsewhere Classified,GPC
Statement 19/01/2016 - 18/02/2016 ,C&YPS-Non Delegated,LEICESTERSHIRE C COUNC,05/02/2016,0.01,Other Expenditure - General,Government Services-Not Elsewhere Classified,GPC
Statement 19/01/2016 - 18/02/2016 ,C&YPS-Non Delegated,LEICESTERSHIRE C COUNC,08/02/2016,11,Other Expenditure - General,Government Services-Not Elsewhere Classified,GPC
Statement 19/01/2016 - 18/02/2016 ,C&YPS-Non Delegated,LEICESTERSHIRE CRAFT CENT,26/01/2016,173.5,Other Equipment & Materials - General,"Artist Supply Stores, Craft Shops",GPC
Statement 19/01/2016 - 18/02/2016 ,C&YPS-Non Delegated,LIDL UK,28/01/2016,34.24,Materials - General,"Grocery Stores, Supermarkets",GPC
Statement 19/01/2016 - 18/02/2016 ,C&YPS-Non Delegated,LIDL UK,20/01/2016,116.91,Provisions - General,"Grocery Stores, Supermarkets",GPC
Statement 19/01/2016 - 18/02/2016 ,C&YPS-Non Delegated,LIDL UK,26/01/2016,86.06,Provisions - General,"Grocery Stores, Supermarkets",GPC
Statement 19/01/2016 - 18/02/2016 ,C&YPS-Non Delegated,LINDAMLIMIT,29/01/2016,19.99,Materials - General,Miscellaneous and Specialty Retail Stores,GPC
Statement 19/01/2016 - 18/02/2016 ,C&YPS-Non Delegated,LINKEDIN-254 5471054,03/02/2016,227.94,Recruitment Advertising - General,Continuity/Subscription Merchants,GPC
Statement 19/01/2016 - 18/02/2016 ,C&YPS-Non Delegated,LP4,04/02/2016,8.75,Subsistence - General,Fast-Food Restaurants (Quick Payment Service Pilot,GPC
Statement 19/01/2016 - 18/02/2016 ,C&YPS-Non Delegated,LUFTHANSA   2201615154567,20/01/2016,143.74,Other Transfer Payments - Section 23 Grants,Lufthansa,GPC
Statement 19/01/2016 - 18/02/2016 ,C&YPS-Non Delegated,LUFTHANSA   2201615154568,20/01/2016,176.74,Other Transfer Payments - Section 23 Grants,Lufthansa,GPC
Statement 19/01/2016 - 18/02/2016 ,C&YPS-Non Delegated,LUTHER KING HOUSE,21/01/2016,70,Training Expenses - General,"Lodging-Hotels, Motels, Resorts",GPC
Statement 19/01/2016 - 18/02/2016 ,C&YPS-Non Delegated,MATTRESSMAN LTD,02/02/2016,238,Materials - General,"Furniture, Home Furnishings and Equipment Stores,",GPC
Statement 19/01/2016 - 18/02/2016 ,C&YPS-Non Delegated,MCAFEE  INTEL SECURITY,03/02/2016,52.99,Other Expenditure - General,Continuity/Subscription Merchants,GPC
Statement 19/01/2016 - 18/02/2016 ,C&YPS-Non Delegated,MCDONALDS,20/01/2016,3.99,Other Equipment & Materials - General,Fast-Food Restaurants (Quick Payment Service Pilot,GPC
Statement 19/01/2016 - 18/02/2016 ,C&YPS-Non Delegated,MCDONALDS,02/02/2016,5.62,Other Equipment & Materials - General,"Eating Places, Restaurants",GPC
Statement 19/01/2016 - 18/02/2016 ,C&YPS-Non Delegated,MCDONALDS,16/02/2016,3.89,Subsistence - General,"Eating Places, Restaurants",GPC
Statement 19/01/2016 - 18/02/2016 ,C&YPS-Non Delegated,MEGAZONE (LEICESTER) L,09/02/2016,10,Public Transport -  Staff - General,"Amusement Parks, Circuses, Carnivals, Fortune Tell",GPC
Statement 19/01/2016 - 18/02/2016 ,C&YPS-Non Delegated,MEGAZONE (LEICESTER) L,15/02/2016,50,Public Transport -  Staff - General,"Amusement Parks, Circuses, Carnivals, Fortune Tell",GPC
Statement 19/01/2016 - 18/02/2016 ,C&YPS-Non Delegated,MIDLANDS ART CENTRE,08/02/2016,60,Training Expenses - General,Tourist Attractions and Exhibits,GPC
Statement 19/01/2016 - 18/02/2016 ,C&YPS-Non Delegated,MUFFIN BREAK (LOUGHBOR,18/01/2016,6.85,Other Expenditure - General,"Eating Places, Restaurants",GPC
Statement 19/01/2016 - 18/02/2016 ,C&YPS-Non Delegated,NCP LIMITED,03/02/2016,6.4,Casual/Essential - General,Automobile Parking Lots and Garages,GPC
Statement 19/01/2016 - 18/02/2016 ,C&YPS-Non Delegated,NOTTINGHAM CITY CO,21/01/2016,11,Communications Equipment - General,Computer Network/Information Services,GPC
Statement 19/01/2016 - 18/02/2016 ,C&YPS-Non Delegated,NOTTINGHAM CITY CO,05/02/2016,21,Communications Equipment - General,Computer Network/Information Services,GPC
Statement 19/01/2016 - 18/02/2016 ,C&YPS-Non Delegated,PAVILION PUBLISHING &,05/02/2016,23.95,Consultants & Specialists - General,"Books, Periodicals, and Newspapers",GPC
Statement 19/01/2016 - 18/02/2016 ,C&YPS-Non Delegated,PAYPAL  BAKERROSSLI,10/02/2016,50.98,Other Equipment & Materials - General,"Hobby, Toy, and Game Shops",GPC
Statement 19/01/2016 - 18/02/2016 ,C&YPS-Non Delegated,PAYPAL  FOST NETWOR,08/02/2016,62.98,Other Services - General,Charitable and Social Service Organizations,GPC
Statement 19/01/2016 - 18/02/2016 ,C&YPS-Non Delegated,PAYPAL  MADLAB LTD,29/01/2016,18.8,Materials - General,"RADIO, TELEVISION, AND STEREO STORES (ELECTRONIC STORES)",GPC
Statement 19/01/2016 - 18/02/2016 ,C&YPS-Non Delegated,PAYPAL  SUEMERV,10/02/2016,12.99,Other Equipment & Materials - General,Miscellaneous and Specialty Retail Stores,GPC
Statement 19/01/2016 - 18/02/2016 ,C&YPS-Non Delegated,PAYPAL  WORLDBOOKSL,21/01/2016,6.98,Other Equipment & Materials - General,Book Stores,GPC
Statement 19/01/2016 - 18/02/2016 ,C&YPS-Non Delegated,PAYPAL  YAO WANG,05/02/2016,4.3,Other Equipment & Materials - General,Women's Ready to Wear Shoes,GPC
Statement 19/01/2016 - 18/02/2016 ,C&YPS-Non Delegated,POST OFFICE COUNTER,18/01/2016,31.5,Other Expenditure - General,Postage Stamps,GPC
Statement 19/01/2016 - 18/02/2016 ,C&YPS-Non Delegated,POST OFFICE COUNTER,19/01/2016,72.64,Postal Services - General,Postage Stamps,GPC
Statement 19/01/2016 - 18/02/2016 ,C&YPS-Non Delegated,POUNDSTRETCHER 175,28/01/2016,2.5,Catering Equipment - General,"Drapery, Window Coverings, and Upholstery Stores",GPC
Statement 19/01/2016 - 18/02/2016 ,C&YPS-Non Delegated,POUNDSTRETCHER 175,07/02/2016,22.95,Furniture - General,"Drapery, Window Coverings, and Upholstery Stores",GPC
Statement 19/01/2016 - 18/02/2016 ,C&YPS-Non Delegated,POUNDSTRETCHER 175,03/02/2016,10.68,General Equipment - General,"Drapery, Window Coverings, and Upholstery Stores",GPC
Statement 19/01/2016 - 18/02/2016 ,C&YPS-Non Delegated,PREMIERMEETINGS.CO.UK,19/01/2016,213.6,Other Equipment & Materials - General,Business Services-Not Elsewhere Classified,GPC
Statement 19/01/2016 - 18/02/2016 ,C&YPS-Non Delegated,ROYAL SCHOOLS OF M,12/02/2016,46,Materials - General,Charitable and Social Service Organizations,GPC
Statement 19/01/2016 - 18/02/2016 ,C&YPS-Non Delegated,SAINSBURY'S S/MKT,18/01/2016,18.49,Materials - General,"Grocery Stores, Supermarkets",GPC
Statement 19/01/2016 - 18/02/2016 ,C&YPS-Non Delegated,SAINSBURY'S S/MKT,25/01/2016,24.05,Provisions - General,"Grocery Stores, Supermarkets",GPC
Statement 19/01/2016 - 18/02/2016 ,C&YPS-Non Delegated,SAINSBURY'S S/MKT,28/01/2016,1.5,Provisions - General,"Grocery Stores, Supermarkets",GPC
Statement 19/01/2016 - 18/02/2016 ,C&YPS-Non Delegated,SAINSBURY'S S/MKT,21/01/2016,11.7,Subsistence - General,"Grocery Stores, Supermarkets",GPC
Statement 19/01/2016 - 18/02/2016 ,C&YPS-Non Delegated,SAINSBURY'S S/MKT,26/01/2016,4,Subsistence - General,"Grocery Stores, Supermarkets",GPC
Statement 19/01/2016 - 18/02/2016 ,C&YPS-Non Delegated,SAINSBURYS S/MKTS,28/01/2016,17.24,Materials - General,"Grocery Stores, Supermarkets",GPC
Statement 19/01/2016 - 18/02/2016 ,C&YPS-Non Delegated,SAINSBURYS S/MKTS,20/01/2016,25.55,Other Equipment & Materials - General,"Grocery Stores, Supermarkets",GPC
Statement 19/01/2016 - 18/02/2016 ,C&YPS-Non Delegated,SAINSBURYS S/MKTS,27/01/2016,4,Other Equipment & Materials - General,"Grocery Stores, Supermarkets",GPC
Statement 19/01/2016 - 18/02/2016 ,C&YPS-Non Delegated,SAINSBURYS S/MKTS,19/01/2016,19.57,Provisions - General,"Grocery Stores, Supermarkets",GPC
Statement 19/01/2016 - 18/02/2016 ,C&YPS-Non Delegated,SENSE COALVILLE,02/02/2016,95,Other Services - General,Charitable and Social Service Organizations,GPC
Statement 19/01/2016 - 18/02/2016 ,C&YPS-Non Delegated,SHELL THURCASTON,04/02/2016,4.15,R&M of Vehicles-Non Contract - General,Service Stations (with or without Ancillary Servic,GPC
Statement 19/01/2016 - 18/02/2016 ,C&YPS-Non Delegated,SOUTH LEICESTERSHIRE C,22/01/2016,1175.3,Other Equipment & Materials - General,"Colleges, Universities, Professional Schools, and",GPC
Statement 19/01/2016 - 18/02/2016 ,C&YPS-Non Delegated,ST JOHN AMBULANCE,09/02/2016,156,Other Services - General,Charitable and Social Service Organizations,GPC
Statement 19/01/2016 - 18/02/2016 ,C&YPS-Non Delegated,STAPLES UK,10/02/2016,6.66,Other Equipment & Materials - General,"Stationery, Office, and School Supply Stores",GPC
Statement 19/01/2016 - 18/02/2016 ,C&YPS-Non Delegated,T K MAXX,08/02/2016,4.99,Materials - General,Variety Stores,GPC
Statement 19/01/2016 - 18/02/2016 ,C&YPS-Non Delegated,TAMWORTH BOROUGH COUNC,04/02/2016,148.12,Other Expenditure - General,Government Services-Not Elsewhere Classified,GPC
Statement 19/01/2016 - 18/02/2016 ,C&YPS-Non Delegated,TESCO DIRECT,18/01/2016,199,Materials - General,Miscellaneous and Specialty Retail Stores,GPC
Statement 19/01/2016 - 18/02/2016 ,C&YPS-Non Delegated,TESCO STORE 2846,28/01/2016,24.56,Other Equipment & Materials - General,"Grocery Stores, Supermarkets",GPC
Statement 19/01/2016 - 18/02/2016 ,C&YPS-Non Delegated,TESCO STORE 2846,21/01/2016,58,Other Expenditure - General,"Grocery Stores, Supermarkets",GPC
Statement 19/01/2016 - 18/02/2016 ,C&YPS-Non Delegated,TESCO STORE 2849,26/01/2016,91.6,Materials - General,"Grocery Stores, Supermarkets",GPC
Statement 19/01/2016 - 18/02/2016 ,C&YPS-Non Delegated,TESCO STORE 2849,20/01/2016,7.2,Other Equipment & Materials - General,"Grocery Stores, Supermarkets",GPC
Statement 19/01/2016 - 18/02/2016 ,C&YPS-Non Delegated,TESCO STORE 2849,21/01/2016,155.64,Other Equipment & Materials - General,"Grocery Stores, Supermarkets",GPC
Statement 19/01/2016 - 18/02/2016 ,C&YPS-Non Delegated,TESCO STORE 2849,11/02/2016,39.75,Other Expenditure - General,"Grocery Stores, Supermarkets",GPC
Statement 19/01/2016 - 18/02/2016 ,C&YPS-Non Delegated,TESCO STORE 2849,21/01/2016,6.74,Subsistence - General,"Grocery Stores, Supermarkets",GPC
Statement 19/01/2016 - 18/02/2016 ,C&YPS-Non Delegated,TESCO STORES 5123,16/02/2016,26.35,Materials - General,"Grocery Stores, Supermarkets",GPC
Statement 19/01/2016 - 18/02/2016 ,C&YPS-Non Delegated,TESCO STORES 5149,02/02/2016,7.56,Materials - General,"Grocery Stores, Supermarkets",GPC
Statement 19/01/2016 - 18/02/2016 ,C&YPS-Non Delegated,TESCO STORES 5182,28/01/2016,7.87,Other Equipment & Materials - General,"Grocery Stores, Supermarkets",GPC
Statement 19/01/2016 - 18/02/2016 ,C&YPS-Non Delegated,TESCO STORES 5182,18/01/2016,125.83,Provisions - General,"Grocery Stores, Supermarkets",GPC
Statement 19/01/2016 - 18/02/2016 ,C&YPS-Non Delegated,TESCO STORES 5182,25/01/2016,167.57,Provisions - General,"Grocery Stores, Supermarkets",GPC
Statement 19/01/2016 - 18/02/2016 ,C&YPS-Non Delegated,TESCO STORES 5902,08/02/2016,60.23,Other Equipment & Materials - General,"Grocery Stores, Supermarkets",GPC
Statement 19/01/2016 - 18/02/2016 ,C&YPS-Non Delegated,TESCO STORES 5902,29/01/2016,6.12,Provisions - General,"Grocery Stores, Supermarkets",GPC
Statement 19/01/2016 - 18/02/2016 ,C&YPS-Non Delegated,TESCO STORES 6678,11/02/2016,3.55,Materials - General,"Grocery Stores, Supermarkets",GPC
Statement 19/01/2016 - 18/02/2016 ,C&YPS-Non Delegated,TESCO-STORES 2846,03/02/2016,10.55,Materials - General,"Grocery Stores, Supermarkets",GPC
Statement 19/01/2016 - 18/02/2016 ,C&YPS-Non Delegated,THE ANGEL HOTEL,15/02/2016,131.73,Subsistence - General,"Drinking Places (Alcoholic Beverages)-Bars, Tavern",GPC
Statement 19/01/2016 - 18/02/2016 ,C&YPS-Non Delegated,THE BOOK PEOPLE,04/02/2016,59.95,Books - General,Book Stores,GPC
Statement 19/01/2016 - 18/02/2016 ,C&YPS-Non Delegated,THE BOOK PEOPLE,04/02/2016,27.97,Books - General,Book Stores,GPC
Statement 19/01/2016 - 18/02/2016 ,C&YPS-Non Delegated,THE BOOK PEOPLE,19/01/2016,200.14,Other Equipment & Materials - General,Book Stores,GPC
Statement 19/01/2016 - 18/02/2016 ,C&YPS-Non Delegated,THE CHILDRENS PROJECT,03/02/2016,145.66,Other Equipment & Materials - General,Book Stores,GPC
Statement 19/01/2016 - 18/02/2016 ,C&YPS-Non Delegated,THE POST OFFICE,19/01/2016,3.78,Postal Services - General,Postage Stamps,GPC
Statement 19/01/2016 - 18/02/2016 ,C&YPS-Non Delegated,THE RANGE,05/02/2016,48.64,Other Equipment & Materials - General,Department Stores,GPC
Statement 19/01/2016 - 18/02/2016 ,C&YPS-Non Delegated,THE RANGE,04/02/2016,87.85,Stationery - General,Department Stores,GPC
Statement 19/01/2016 - 18/02/2016 ,C&YPS-Non Delegated,THE SYSONBY KNOLL,11/02/2016,69.3,Subsistence - General,"Lodging-Hotels, Motels, Resorts",GPC
Statement 19/01/2016 - 18/02/2016 ,C&YPS-Non Delegated,TOUCH-NEEDS LTD,09/02/2016,111.25,Other Equipment & Materials - General,Laboratory/Medical/Dental/Ophthalmic Hospital Equi,GPC
Statement 19/01/2016 - 18/02/2016 ,C&YPS-Non Delegated,TRAVELODGE AGENT,02/02/2016,66.5,Other Transfer Payments - Leaving Care Grants,Travelodge,GPC
Statement 19/01/2016 - 18/02/2016 ,C&YPS-Non Delegated,TSGN,19/01/2016,50,Casual/Essential - General,Passenger Railways,GPC
Statement 19/01/2016 - 18/02/2016 ,C&YPS-Non Delegated,TV LICENSING,10/02/2016,145.5,Schools Agency staff - Teaching Staff,"Management, Consulting and Public Relations Servic",GPC
Statement 19/01/2016 - 18/02/2016 ,C&YPS-Non Delegated,TVLICENSING.CO.UK,01/02/2016,145.5,Other Equipment & Materials - General,"Management, Consulting and Public Relations Servic",GPC
Statement 19/01/2016 - 18/02/2016 ,C&YPS-Non Delegated,TVLICENSING.CO.UK,26/01/2016,145.5,Other Transfer Payments - Leaving Care Grants,"Management, Consulting and Public Relations Servic",GPC
Statement 19/01/2016 - 18/02/2016 ,C&YPS-Non Delegated,TVLICENSING.CO.UK,22/01/2016,145.5,Schools Agency staff - Teaching Staff,"Management, Consulting and Public Relations Servic",GPC
Statement 19/01/2016 - 18/02/2016 ,C&YPS-Non Delegated,TVLICENSING.CO.UK,22/01/2016,145.5,Schools Agency staff - Teaching Staff,"Management, Consulting and Public Relations Servic",GPC
Statement 19/01/2016 - 18/02/2016 ,C&YPS-Non Delegated,TVLICENSING.CO.UK,08/02/2016,145.5,Schools Agency staff - Teaching Staff,"Management, Consulting and Public Relations Servic",GPC
Statement 19/01/2016 - 18/02/2016 ,C&YPS-Non Delegated,TVLICENSING.CO.UK,27/01/2016,145.5,Subscriptions - General,"Management, Consulting and Public Relations Servic",GPC
Statement 19/01/2016 - 18/02/2016 ,C&YPS-Non Delegated,TWINLAKESPARK.COM,05/02/2016,88.13,Other Equipment & Materials - General,"Amusement Parks, Circuses, Carnivals, Fortune Tell",GPC
Statement 19/01/2016 - 18/02/2016 ,C&YPS-Non Delegated,UK ATHLETICS,16/02/2016,40,Personal Needs of Clients - Clothing,"Membership Clubs (Sports, Recreation, Athletic), C",GPC
Statement 19/01/2016 - 18/02/2016 ,C&YPS-Non Delegated,VIVID LAMINATION TEC,29/01/2016,79,Stationery - General,"Stationery, Office, and School Supply Stores",GPC
Statement 19/01/2016 - 18/02/2016 ,C&YPS-Non Delegated,W M MORRISON,01/02/2016,11.64,Other Expenditure - General,"Grocery Stores, Supermarkets",GPC
Statement 19/01/2016 - 18/02/2016 ,C&YPS-Non Delegated,W M MORRISONS,21/01/2016,8.78,Other Equipment & Materials - General,"Grocery Stores, Supermarkets",GPC
Statement 19/01/2016 - 18/02/2016 ,C&YPS-Non Delegated,W M MORRISONS,26/01/2016,37.7,Other Equipment & Materials - General,"Grocery Stores, Supermarkets",GPC
Statement 19/01/2016 - 18/02/2016 ,C&YPS-Non Delegated,W M MORRISONS,29/01/2016,3.45,Other Equipment & Materials - General,"Grocery Stores, Supermarkets",GPC
Statement 19/01/2016 - 18/02/2016 ,C&YPS-Non Delegated,W M MORRISONS,03/02/2016,15.96,Other Equipment & Materials - General,"Grocery Stores, Supermarkets",GPC
Statement 19/01/2016 - 18/02/2016 ,C&YPS-Non Delegated,WAVENEY DISTRICT C,16/02/2016,27.56,Other Expenditure - General,Government Services-Not Elsewhere Classified,GPC
Statement 19/01/2016 - 18/02/2016 ,C&YPS-Non Delegated,WEST COAST TRAINS,27/01/2016,8,Casual/Essential - General,Automobile Parking Lots and Garages,GPC
Statement 19/01/2016 - 18/02/2016 ,C&YPS-Non Delegated,WH SMITH,09/02/2016,10.48,Newspapers & Periodicals - General,News Dealers and Newsstands,GPC
Statement 19/01/2016 - 18/02/2016 ,C&YPS-Non Delegated,WH SMITH,19/01/2016,59.96,Other Transfer Payments - Section 23 Grants,News Dealers and Newsstands,GPC
Statement 19/01/2016 - 18/02/2016 ,C&YPS-Non Delegated,WILKO RETAIL LIMIT,28/01/2016,29.5,Other Equipment & Materials - General,Household Appliance Stores,GPC
Statement 19/01/2016 - 18/02/2016 ,C&YPS-Non Delegated,WILKO RETAIL LIMIT,28/01/2016,6.04,Stationery - General,Household Appliance Stores,GPC
Statement 19/01/2016 - 18/02/2016 ,C&YPS-Non Delegated,WM MORRISON 054,04/02/2016,25.44,Materials - General,"Grocery Stores, Supermarkets",GPC
Statement 19/01/2016 - 18/02/2016 ,C&YPS-Non Delegated,WM MORRISON 054,16/02/2016,31.02,Materials - General,"Grocery Stores, Supermarkets",GPC
Statement 19/01/2016 - 18/02/2016 ,C&YPS-Non Delegated,WM MORRISON 054,21/01/2016,30,Provisions - General,"Grocery Stores, Supermarkets",GPC
Statement 19/01/2016 - 18/02/2016 ,C&YPS-Non Delegated,WorderyEU,22/01/2016,237.12,Books - General,Book Stores,GPC
Statement 19/01/2016 - 18/02/2016 ,C&YPS-Non Delegated,WorderyEU,26/01/2016,34.09,Books - General,Book Stores,GPC
Statement 19/01/2016 - 18/02/2016 ,C&YPS-Non Delegated,WORLDSTORES LTD,18/01/2016,245.96,Materials - General,Miscellaneous House Furnishing Specialty Shops,GPC
Statement 19/01/2016 - 18/02/2016 ,C&YPS-Non Delegated,WORLDSTORES LTD,20/01/2016,514.98,Materials - General,Miscellaneous House Furnishing Specialty Shops,GPC
Statement 19/01/2016 - 18/02/2016 ,C&YPS-Non Delegated,WP-STAMPS DIRECT L,10/02/2016,18.93,Furniture - General,"Stationery, Office, and School Supply Stores",GPC
Statement 19/01/2016 - 18/02/2016 ,C&YPS-Non Delegated,WP-STAMPS DIRECT L,01/02/2016,49.99,General Equipment - General,"Stationery, Office, and School Supply Stores",GPC
Statement 19/01/2016 - 18/02/2016 ,C&YPS-Non Delegated,WP-WARWICKSHIRE CO,15/02/2016,10.63,Other Expenditure - General,Government Services-Not Elsewhere Classified,GPC
Statement 19/01/2016 - 18/02/2016 ,C&YPS-Non Delegated,WWW.BOUNCEGB.COM,16/02/2016,24.96,Personal Needs of Clients - Holidays & Outings,RECREATION SERVICES--NOT ELSEWHERE CLASSIFIED,GPC
Statement 19/01/2016 - 18/02/2016 ,C&YPS-Non Delegated,WWW.CITIZENCARD.COM,11/02/2016,15,Other Expenditure - General,Government Services-Not Elsewhere Classified,GPC
Statement 19/01/2016 - 18/02/2016 ,C&YPS-Non Delegated,WWW.CJSEVENTS.CO.UK,18/01/2016,147.6,Training Expenses - General,"Management, Consulting and Public Relations Servic",GPC
Statement 19/01/2016 - 18/02/2016 ,C&YPS-Non Delegated,WWW.CJSEVENTS.CO.UK,20/01/2016,147.6,Training Expenses - General,"Management, Consulting and Public Relations Servic",GPC
Statement 19/01/2016 - 18/02/2016 ,C&YPS-Non Delegated,WWW.CJSEVENTS.CO.UK,21/01/2016,147.6,Training Expenses - General,"Management, Consulting and Public Relations Servic",GPC
Statement 19/01/2016 - 18/02/2016 ,C&YPS-Non Delegated,WWW.COOPELECTRICAL,10/02/2016,179.99,Materials - General,Household Appliance Stores,GPC
Statement 19/01/2016 - 18/02/2016 ,C&YPS-Non Delegated,WWW.CORAM.ORG.UK,22/01/2016,240.12,Other Services - General,Charitable and Social Service Organizations,GPC
Statement 19/01/2016 - 18/02/2016 ,C&YPS-Non Delegated,WWW.MILKANDMORE.CO.UK,22/01/2016,6.24,Provisions - General,Continuity/Subscription Merchants,GPC
Statement 19/01/2016 - 18/02/2016 ,C&YPS-Non Delegated,WWW.MILKANDMORE.CO.UK,01/02/2016,4.68,Provisions - General,Continuity/Subscription Merchants,GPC
Statement 19/01/2016 - 18/02/2016 ,C&YPS-Non Delegated,WWW.MILKANDMORE.CO.UK,01/02/2016,12.48,Provisions - General,Continuity/Subscription Merchants,GPC
Statement 19/01/2016 - 18/02/2016 ,C&YPS-Non Delegated,WWW.MILKANDMORE.CO.UK,01/02/2016,11.75,Provisions - General,Continuity/Subscription Merchants,GPC
Statement 19/01/2016 - 18/02/2016 ,C&YPS-Non Delegated,WWW.MILKANDMORE.CO.UK,01/02/2016,6.24,Provisions - General,Continuity/Subscription Merchants,GPC
Statement 19/01/2016 - 18/02/2016 ,C&YPS-Non Delegated,WWW.ROYALCENTRE-NOTTINGH,08/02/2016,62.25,Other Equipment & Materials - General,"Theatrical Products (Except Motion Pictures), Tick",GPC
Statement 19/01/2016 - 18/02/2016 ,C&YPS-Non Delegated,WWW.ROYALCENTRE-NOTTINGH,08/02/2016,106.25,Other Equipment & Materials - General,"Theatrical Products (Except Motion Pictures), Tick",GPC
Statement 19/01/2016 - 18/02/2016 ,C&YPS-Non Delegated,WWW.ROYALMAIL.COM,27/01/2016,378,Other Equipment & Materials - General,Postage Stamps,GPC
Statement 19/01/2016 - 18/02/2016 ,C&YPS-Non Delegated,WWW.ROYALMAIL.COM,22/01/2016,221,Postal Services - General,Postage Stamps,GPC
Statement 19/01/2016 - 18/02/2016 ,C&YPS-Non Delegated,WWW.SCHOLASTIC.CO.UK,20/01/2016,30,Books - General,"Books, Periodicals, and Newspapers",GPC
Statement 19/01/2016 - 18/02/2016 ,C&YPS-Non Delegated,WWW.SKATES.CO.UK,19/01/2016,20.8,Other Equipment & Materials - General,Sporting Goods Stores,GPC
Statement 19/01/2016 - 18/02/2016 ,C&YPS-Non Delegated,WWW.SKATES.CO.UK,19/01/2016,11.9,Other Equipment & Materials - General,Sporting Goods Stores,GPC
Statement 19/01/2016 - 18/02/2016 ,C&YPS-Non Delegated,WWW.STAPLES.CO.UK,05/02/2016,165.36,Other Equipment & Materials - General,"Stationery, Office, and School Supply Stores",GPC
Statement 19/01/2016 - 18/02/2016 ,C&YPS-Non Delegated,WWW.THEWORKS.CO.UK,27/01/2016,30,Books - General,Book Stores,GPC
Statement 19/01/2016 - 18/02/2016 ,C&YPS-Non Delegated,WWW.THEWORKS.CO.UK,26/01/2016,138,Other Equipment & Materials - General,Book Stores,GPC
Statement 19/01/2016 - 18/02/2016 ,C&YPS-Non Delegated,WWW.THEWORKS.CO.UK,08/02/2016,28.5,Other Expenditure - General,Book Stores,GPC
Statement 19/01/2016 - 18/02/2016 ,C&YPS-Schools,ALDI,20/01/2016,56.25,Materials - General,"Grocery Stores, Supermarkets",GPC
Statement 19/01/2016 - 18/02/2016 ,C&YPS-Schools,ALDI,27/01/2016,64.07,Materials - General,"Grocery Stores, Supermarkets",GPC
Statement 19/01/2016 - 18/02/2016 ,C&YPS-Schools,Amazon Svcs Europe SAR,10/02/2016,9.78,Books - General,Book Stores,GPC
Statement 19/01/2016 - 18/02/2016 ,C&YPS-Schools,Amazon UK Marketplace,04/02/2016,5.3,Materials - General,Miscellaneous and Specialty Retail Stores,GPC
Statement 19/01/2016 - 18/02/2016 ,C&YPS-Schools,Amazon UK Marketplace,06/02/2016,6.49,Materials - General,Miscellaneous and Specialty Retail Stores,GPC
Statement 19/01/2016 - 18/02/2016 ,C&YPS-Schools,Amazon UK Marketplace,09/02/2016,14.25,Materials - General,Miscellaneous and Specialty Retail Stores,GPC
Statement 19/01/2016 - 18/02/2016 ,C&YPS-Schools,Amazon UK Marketplace,12/02/2016,8.98,Materials - General,Miscellaneous and Specialty Retail Stores,GPC
Statement 19/01/2016 - 18/02/2016 ,C&YPS-Schools,Amazon UK Retail,12/02/2016,23.35,Other Expenditure - General,Direct Marketers - Other,GPC
Statement 19/01/2016 - 18/02/2016 ,C&YPS-Schools,Amazon UK Retail,12/02/2016,23.42,Other Expenditure - General,Direct Marketers - Other,GPC
Statement 19/01/2016 - 18/02/2016 ,C&YPS-Schools,ARGOS LTD,04/02/2016,20,Materials - General,Discount Stores,GPC
Statement 19/01/2016 - 18/02/2016 ,C&YPS-Schools,ARGOS RETAIL GROUP,29/01/2016,28.97,Materials - General,Discount Stores,GPC
Statement 19/01/2016 - 18/02/2016 ,C&YPS-Schools,ARGOS RETAIL GROUP,12/02/2016,6.99,Materials - General,Discount Stores,GPC
Statement 19/01/2016 - 18/02/2016 ,C&YPS-Schools,ASDA SUPERSTORE,04/02/2016,61.34,Materials - General,"Grocery Stores, Supermarkets",GPC
Statement 19/01/2016 - 18/02/2016 ,C&YPS-Schools,ESPO,20/01/2016,244.85,Other Expenditure - General,Government Services-Not Elsewhere Classified,GPC
Statement 19/01/2016 - 18/02/2016 ,C&YPS-Schools,ESPO,21/01/2016,11.7,Other Expenditure - General,Government Services-Not Elsewhere Classified,GPC
Statement 19/01/2016 - 18/02/2016 ,C&YPS-Schools,ESPO,28/01/2016,333.81,Other Expenditure - General,Government Services-Not Elsewhere Classified,GPC
Statement 19/01/2016 - 18/02/2016 ,C&YPS-Schools,ESPO,28/01/2016,112.31,Other Expenditure - General,Government Services-Not Elsewhere Classified,GPC
Statement 19/01/2016 - 18/02/2016 ,C&YPS-Schools,TESCO STORES 5182,03/02/2016,8.21,Materials - General,"Grocery Stores, Supermarkets",GPC
Statement 19/01/2016 - 18/02/2016 ,C&YPS-Schools,TESCO STORES 5182,11/02/2016,15,Materials - General,"Grocery Stores, Supermarkets",GPC
Statement 19/01/2016 - 18/02/2016 ,C&YPS-Schools,TVLICENSING.CO.UK,03/02/2016,145.5,Schools Agency staff - Teaching Staff,"Management, Consulting and Public Relations Servic",GPC
Statement 19/01/2016 - 18/02/2016 ,C&YPS-Schools,W M MORRISONS,08/02/2016,13.77,Materials - General,"Grocery Stores, Supermarkets",GPC
Statement 19/01/2016 - 18/02/2016 ,Chief Executive,Amazon UK Marketplace,28/01/2016,61.06,Books - General,Book Stores,GPC
Statement 19/01/2016 - 18/02/2016 ,Chief Executive,Amazon UK Marketplace,29/01/2016,55.96,Books - General,Book Stores,GPC
Statement 19/01/2016 - 18/02/2016 ,Chief Executive,Amazon UK Marketplace,01/02/2016,3.87,Books - General,Book Stores,GPC
Statement 19/01/2016 - 18/02/2016 ,Chief Executive,Amazon UK Marketplace,18/01/2016,45.3,Other Expenditure - General,Miscellaneous and Specialty Retail Stores,GPC
Statement 19/01/2016 - 18/02/2016 ,Chief Executive,Amazon UK Marketplace,21/01/2016,4.49,Other Expenditure - General,Miscellaneous and Specialty Retail Stores,GPC
Statement 19/01/2016 - 18/02/2016 ,Chief Executive,Amazon UK Marketplace,28/01/2016,52.16,Other Expenditure - General,Miscellaneous and Specialty Retail Stores,GPC
Statement 19/01/2016 - 18/02/2016 ,Chief Executive,Amazon UK Marketplace,09/02/2016,23.97,Stationery - General,Miscellaneous and Specialty Retail Stores,GPC
Statement 19/01/2016 - 18/02/2016 ,Chief Executive,Amazon UK Retail,27/01/2016,27.66,Stationery - General,Direct Marketers - Other,GPC
Statement 19/01/2016 - 18/02/2016 ,Chief Executive,BE EVENT HIRE,09/02/2016,393,Other Equipment & Materials - General,"Equipment Rental and Leasing Services, Tool Rental",GPC
Statement 19/01/2016 - 18/02/2016 ,Chief Executive,CARTRIDGE SAVE,09/02/2016,146.27,Stationery - General,"Stationary, Office Supplies, Printing and Writing",GPC
Statement 19/01/2016 - 18/02/2016 ,Chief Executive,CARTRIDGESAVE.CO.UK,20/01/2016,17.62,Other Expenditure - General,"Stationery, Office, and School Supply Stores",GPC
Statement 19/01/2016 - 18/02/2016 ,Chief Executive,CHARNWOOD BOROUGH COUNCI,19/01/2016,1.6,Casual/Essential - General,Automobile Parking Lots and Garages,GPC
Statement 19/01/2016 - 18/02/2016 ,Chief Executive,CHARNWOOD BOROUGH COUNCI,21/01/2016,1.6,Casual/Essential - General,Automobile Parking Lots and Garages,GPC
Statement 19/01/2016 - 18/02/2016 ,Chief Executive,CHARNWOOD BOROUGH COUNCI,04/02/2016,1.6,Casual/Essential - General,Automobile Parking Lots and Garages,GPC
Statement 19/01/2016 - 18/02/2016 ,Chief Executive,CHARNWOOD BOROUGH COUNCI,09/02/2016,1.6,Casual/Essential - General,Automobile Parking Lots and Garages,GPC
Statement 19/01/2016 - 18/02/2016 ,Chief Executive,CIEH,05/02/2016,290,Payments to Carers - General,Membership Organizations-Not Elsewhere Classified,GPC
Statement 19/01/2016 - 18/02/2016 ,Chief Executive,COMPANIES HOUSE,27/01/2016,4,Other Expenditure - General,Government Services-Not Elsewhere Classified,GPC
Statement 19/01/2016 - 18/02/2016 ,Chief Executive,COMPANIES HOUSE,04/02/2016,4,Other Expenditure - General,Government Services-Not Elsewhere Classified,GPC
Statement 19/01/2016 - 18/02/2016 ,Chief Executive,HALFORDS 0813,05/02/2016,9.56,Other Expenditure - General,Bicycle Shops-Sales and Service,GPC
Statement 19/01/2016 - 18/02/2016 ,Chief Executive,NCP LIMITED,11/02/2016,4.33,Casual/Essential - General,Automobile Parking Lots and Garages,GPC
Statement 19/01/2016 - 18/02/2016 ,Chief Executive,PAYPAL  TORCHDIRECT,18/01/2016,33.29,Operational Equipment - General,"RADIO, TELEVISION, AND STEREO STORES (ELECTRONIC STORES)",GPC
Statement 19/01/2016 - 18/02/2016 ,Chief Executive,ROYAL MAIL,25/01/2016,117,Postal Services - General,Postage Stamps,GPC
Statement 19/01/2016 - 18/02/2016 ,Chief Executive,ROYAL MAIL,12/02/2016,117,Postal Services - General,Postage Stamps,GPC
Statement 19/01/2016 - 18/02/2016 ,Chief Executive,SCREWFIX DIRECT,01/02/2016,110.83,Operational Equipment - General,"Building Materials, Lumber Stores",GPC
Statement 19/01/2016 - 18/02/2016 ,Chief Executive,SCREWFIX DIRECT,08/02/2016,45.83,Operational Equipment - General,"Building Materials, Lumber Stores",GPC
Statement 19/01/2016 - 18/02/2016 ,Chief Executive,TESCO STORE 2846,23/01/2016,27,Other Expenditure - General,"Grocery Stores, Supermarkets",GPC
Statement 19/01/2016 - 18/02/2016 ,Chief Executive,WWW.FANEVALLEY.COM,04/02/2016,180.75,Other Expenditure - General,Hardware Stores,GPC
Statement 19/01/2016 - 18/02/2016 ,Chief Executive,WWW.FANEVALLEY.COM,08/02/2016,44.85,Other Expenditure - General,Hardware Stores,GPC
Statement 19/01/2016 - 18/02/2016 ,Chief Executive,WWW.HXPAYMENTS.COM,20/01/2016,46.81,Public Transport -  Staff - General,Travel Agencies,GPC
Statement 19/01/2016 - 18/02/2016 ,Chief Executive,WWW.HXPAYMENTS.COM,20/01/2016,3,Public Transport -  Staff - General,Travel Agencies,GPC
Statement 19/01/2016 - 18/02/2016 ,Chief Executive,WWW.MISCO.CO.UK,19/01/2016,76.16,Stationery - General,"Computers, Computer Peripheral Equipment, Software",GPC
Statement 19/01/2016 - 18/02/2016 ,Chief Executive,WWW.ROYALMAIL.COM,10/02/2016,117,Postal Services - General,Postage Stamps,GPC
Statement 19/01/2016 - 18/02/2016 ,Chief Executive,WWW.SELLESMEDICAL.CO.UK,09/02/2016,78.35,Other Expenditure - General,Laboratory/Medical/Dental/Ophthalmic Hospital Equi,GPC
Statement 19/01/2016 - 18/02/2016 ,Chief Executive,WWW.UTTINGS.CO.UK,21/01/2016,98.94,Protective Clothing & Uniforms - General,Sporting Goods Stores,GPC
Statement 19/01/2016 - 18/02/2016 ,Corporate Resources,A W BEESLEY & SON,26/01/2016,65,Other Services - General,"Lawn and Garden Supply Stores, Nurseries",GPC
Statement 19/01/2016 - 18/02/2016 ,Corporate Resources,ACKWA LTD,16/02/2016,49.2,General Equipment - General,Household Appliance Stores,GPC
Statement 19/01/2016 - 18/02/2016 ,Corporate Resources,ACM TRAINING,11/02/2016,129,Training Expenses - General,Professional Services-Not Elsewhere Classified,GPC
Statement 19/01/2016 - 18/02/2016 ,Corporate Resources,Amazon UK Marketplace,27/01/2016,9.5,Catering Equipment - General,Miscellaneous and Specialty Retail Stores,GPC
Statement 19/01/2016 - 18/02/2016 ,Corporate Resources,Amazon UK Marketplace,27/01/2016,16.9,Catering Equipment - General,Misc-Unknown,GPC
Statement 19/01/2016 - 18/02/2016 ,Corporate Resources,Amazon UK Marketplace,29/01/2016,18.33,General Equipment - General,Book Stores,GPC
Statement 19/01/2016 - 18/02/2016 ,Corporate Resources,Amazon UK Marketplace,24/01/2016,11.5,Operational Equipment - General,Miscellaneous and Specialty Retail Stores,GPC
Statement 19/01/2016 - 18/02/2016 ,Corporate Resources,Amazon UK Marketplace,22/01/2016,-7.99,Other Expenditure - General,Miscellaneous and Specialty Retail Stores,GPC
Statement 19/01/2016 - 18/02/2016 ,Corporate Resources,Amazon UK Marketplace,12/02/2016,4.99,Other Expenditure - General,Miscellaneous and Specialty Retail Stores,GPC
Statement 19/01/2016 - 18/02/2016 ,Corporate Resources,Amazon UK Marketplace,27/01/2016,21.48,Other Services - General,Miscellaneous and Specialty Retail Stores,GPC
Statement 19/01/2016 - 18/02/2016 ,Corporate Resources,Amazon UK Marketplace,19/01/2016,12.94,Publicity/Marketing - General,Miscellaneous and Specialty Retail Stores,GPC
Statement 19/01/2016 - 18/02/2016 ,Corporate Resources,Amazon UK Marketplace,25/01/2016,12.46,R & M Mechanical - Mechanical Repairs,Miscellaneous and Specialty Retail Stores,GPC
Statement 19/01/2016 - 18/02/2016 ,Corporate Resources,Amazon UK Marketplace,19/01/2016,5.49,Stationery - General,Miscellaneous and Specialty Retail Stores,GPC
Statement 19/01/2016 - 18/02/2016 ,Corporate Resources,Amazon UK Marketplace,20/01/2016,2.48,Stationery - General,Book Stores,GPC
Statement 19/01/2016 - 18/02/2016 ,Corporate Resources,Amazon UK Marketplace,22/01/2016,25.76,Stationery - General,Miscellaneous and Specialty Retail Stores,GPC
Statement 19/01/2016 - 18/02/2016 ,Corporate Resources,Amazon UK Marketplace,29/01/2016,3.36,Stationery - General,Miscellaneous and Specialty Retail Stores,GPC
Statement 19/01/2016 - 18/02/2016 ,Corporate Resources,Amazon UK Marketplace,07/02/2016,24.5,Stationery - General,Miscellaneous and Specialty Retail Stores,GPC
Statement 19/01/2016 - 18/02/2016 ,Corporate Resources,Amazon UK Marketplace,08/02/2016,17.99,Stationery - General,Book Stores,GPC
Statement 19/01/2016 - 18/02/2016 ,Corporate Resources,Amazon UK Marketplace,12/02/2016,4.99,Stationery - General,Miscellaneous and Specialty Retail Stores,GPC
Statement 19/01/2016 - 18/02/2016 ,Corporate Resources,Amazon UK Marketplace,18/01/2016,7.09,Training Expenses - General,Miscellaneous and Specialty Retail Stores,GPC
Statement 19/01/2016 - 18/02/2016 ,Corporate Resources,Amazon UK Marketplace,16/02/2016,286.33,Training Expenses - General,Book Stores,GPC
Statement 19/01/2016 - 18/02/2016 ,Corporate Resources,Amazon UK Retail,24/01/2016,30.59,General Equipment - General,Direct Marketers - Other,GPC
Statement 19/01/2016 - 18/02/2016 ,Corporate Resources,Amazon UK Retail,02/02/2016,35.94,General Equipment - General,Direct Marketers - Other,GPC
Statement 19/01/2016 - 18/02/2016 ,Corporate Resources,Amazon UK Retail,30/01/2016,7.11,Newspapers & Periodicals - General,Direct Marketers - Other,GPC
Statement 19/01/2016 - 18/02/2016 ,Corporate Resources,Amazon UK Retail,03/02/2016,11.87,Operational Equipment - General,Direct Marketers - Other,GPC
Statement 19/01/2016 - 18/02/2016 ,Corporate Resources,Amazon UK Retail,05/02/2016,215.9,Operational Equipment - General,Direct Marketers - Other,GPC
Statement 19/01/2016 - 18/02/2016 ,Corporate Resources,Amazon UK Retail,05/02/2016,12.86,Training Expenses - General,Direct Marketers - Other,GPC
Statement 19/01/2016 - 18/02/2016 ,Corporate Resources,Amazon UK Retail,09/02/2016,19.3,Training Expenses - General,Direct Marketers - Other,GPC
Statement 19/01/2016 - 18/02/2016 ,Corporate Resources,APCOA - NWR MANCHESTER,20/01/2016,17.5,Public Transport -  Staff - General,Automobile Parking Lots and Garages,GPC
Statement 19/01/2016 - 18/02/2016 ,Corporate Resources,APCOA - NWR MANCHESTER,26/01/2016,17.5,Public Transport -  Staff - General,Automobile Parking Lots and Garages,GPC
Statement 19/01/2016 - 18/02/2016 ,Corporate Resources,APCOA - NWR MANCHESTER,04/02/2016,13.5,Public Transport -  Staff - General,Automobile Parking Lots and Garages,GPC
Statement 19/01/2016 - 18/02/2016 ,Corporate Resources,ARCO LTD,30/01/2016,61.59,Protective Clothing & Uniforms - General,Industrial Supplies Not Elsewhere Classified,GPC
Statement 19/01/2016 - 18/02/2016 ,Corporate Resources,ASDA STORES 4477,28/01/2016,6.05,Materials - General,"Grocery Stores, Supermarkets",GPC
Statement 19/01/2016 - 18/02/2016 ,Corporate Resources,ASDA STORES 4477,20/01/2016,5.74,Other Expenditure - General,"Grocery Stores, Supermarkets",GPC
Statement 19/01/2016 - 18/02/2016 ,Corporate Resources,ASDA STORES 4477,29/01/2016,6.48,Other Expenditure - General,"Grocery Stores, Supermarkets",GPC
Statement 19/01/2016 - 18/02/2016 ,Corporate Resources,ASDA STORES 4477,01/02/2016,4.5,Other Expenditure - General,"Grocery Stores, Supermarkets",GPC
Statement 19/01/2016 - 18/02/2016 ,Corporate Resources,ASDA STORES 4477,03/02/2016,7.17,Other Expenditure - General,"Grocery Stores, Supermarkets",GPC
Statement 19/01/2016 - 18/02/2016 ,Corporate Resources,ASDA STORES 4477,10/02/2016,6.94,Other Expenditure - General,"Grocery Stores, Supermarkets",GPC
Statement 19/01/2016 - 18/02/2016 ,Corporate Resources,ASDA STORES 4477,13/02/2016,0.94,Other Expenditure - General,"Grocery Stores, Supermarkets",GPC
Statement 19/01/2016 - 18/02/2016 ,Corporate Resources,ASDA STORES 4477,16/02/2016,8,Other Expenditure - General,"Grocery Stores, Supermarkets",GPC
Statement 19/01/2016 - 18/02/2016 ,Corporate Resources,ASDA STORES 4477,10/02/2016,6.8,Other Services - General,"Grocery Stores, Supermarkets",GPC
Statement 19/01/2016 - 18/02/2016 ,Corporate Resources,ASDA SUPERSTORE,31/01/2016,36,Materials - General,"Grocery Stores, Supermarkets",GPC
Statement 19/01/2016 - 18/02/2016 ,Corporate Resources,ASDA SUPERSTORE,15/02/2016,73,Materials - General,"Grocery Stores, Supermarkets",GPC
Statement 19/01/2016 - 18/02/2016 ,Corporate Resources,ASDA SUPERSTORE,03/02/2016,15,Other Equipment & Materials - General,"Grocery Stores, Supermarkets",GPC
Statement 19/01/2016 - 18/02/2016 ,Corporate Resources,AXMINSTER.CO.UK,23/01/2016,30.79,Operational Equipment - General,"Building Materials, Lumber Stores",GPC
Statement 19/01/2016 - 18/02/2016 ,Corporate Resources,B & Q,18/01/2016,10.84,Other Services - General,"Building Materials, Lumber Stores",GPC
Statement 19/01/2016 - 18/02/2016 ,Corporate Resources,B & Q,30/01/2016,3.26,Other Services - General,"Building Materials, Lumber Stores",GPC
Statement 19/01/2016 - 18/02/2016 ,Corporate Resources,BEEFEATER40013290,19/01/2016,11.98,Subsistence - General,"Eating Places, Restaurants",GPC
Statement 19/01/2016 - 18/02/2016 ,Corporate Resources,BLS PETE MACLEAN,26/01/2016,33.48,IT Equipment - Software,Computer and Data Processing Services,GPC
Statement 19/01/2016 - 18/02/2016 ,Corporate Resources,BOOTS COALVILLE,05/02/2016,14.99,Other Services - General,"Drug Stores, Pharmacies",GPC
Statement 19/01/2016 - 18/02/2016 ,Corporate Resources,CAFE RITAZZA,27/01/2016,8.49,Subsistence - General,Fast-Food Restaurants (Quick Payment Service Pilot,GPC
Statement 19/01/2016 - 18/02/2016 ,Corporate Resources,CAFFE NERO,04/02/2016,5.95,Subsistence - General,"Eating Places, Restaurants",GPC
Statement 19/01/2016 - 18/02/2016 ,Corporate Resources,CAFFE NERO - 298,18/01/2016,2.45,Subsistence - General,"Eating Places, Restaurants",GPC
Statement 19/01/2016 - 18/02/2016 ,Corporate Resources,CAPITA BUSINESS SERVS,25/01/2016,478.8,Conference - General,Government Services-Not Elsewhere Classified,GPC
Statement 19/01/2016 - 18/02/2016 ,Corporate Resources,CBT NUGGETS,01/02/2016,1177.52,IT Equipment - Software,Business and Secretarial Schools,GPC
Statement 19/01/2016 - 18/02/2016 ,Corporate Resources,CENTRAL ENG COOP,06/02/2016,7.18,Other Expenditure - General,Department Stores,GPC
Statement 19/01/2016 - 18/02/2016 ,Corporate Resources,CHINA CITY,19/01/2016,11.8,Subsistence - General,"Eating Places, Restaurants",GPC
Statement 19/01/2016 - 18/02/2016 ,Corporate Resources,CIPD ENTERPRISES,05/02/2016,540,Training Expenses - General,Professional Services-Not Elsewhere Classified,GPC
Statement 19/01/2016 - 18/02/2016 ,Corporate Resources,CIPFA COURSES,19/01/2016,50,Training Expenses - General,Miscellaneous and Specialty Retail Stores,GPC
Statement 19/01/2016 - 18/02/2016 ,Corporate Resources,CLINTONS  964,31/01/2016,6.5,Other Services - General,"Gift, Card, Novelty, and Souvenir Shops",GPC
Statement 19/01/2016 - 18/02/2016 ,Corporate Resources,COOKS FARM SHOP,28/01/2016,76.5,Other Expenditure - General,"Lawn and Garden Supply Stores, Nurseries",GPC
Statement 19/01/2016 - 18/02/2016 ,Corporate Resources,COOKS FARM SHOP,05/02/2016,64.75,Other Expenditure - General,"Lawn and Garden Supply Stores, Nurseries",GPC
Statement 19/01/2016 - 18/02/2016 ,Corporate Resources,COOKS FARM SHOP,09/02/2016,-52.8,Other Expenditure - Public Enquiry fees,"Lawn and Garden Supply Stores, Nurseries",GPC
Statement 19/01/2016 - 18/02/2016 ,Corporate Resources,COOKS FARM SHOP,09/02/2016,81.3,Other Expenditure - Public Enquiry fees,"Lawn and Garden Supply Stores, Nurseries",GPC
Statement 19/01/2016 - 18/02/2016 ,Corporate Resources,CO-OP GROUP 070412,28/01/2016,17.09,Other Expenditure - General,"Grocery Stores, Supermarkets",GPC
Statement 19/01/2016 - 18/02/2016 ,Corporate Resources,CO-OP GROUP 070412,04/02/2016,19.66,Other Expenditure - General,"Grocery Stores, Supermarkets",GPC
Statement 19/01/2016 - 18/02/2016 ,Corporate Resources,CO-OP LATE SHOP,10/02/2016,2.47,Other Expenditure - General,"Grocery Stores, Supermarkets",GPC
Statement 19/01/2016 - 18/02/2016 ,Corporate Resources,CO-OP LATE SHOP,11/02/2016,6.55,Other Expenditure - General,"Grocery Stores, Supermarkets",GPC
Statement 19/01/2016 - 18/02/2016 ,Corporate Resources,CROSS COUNTRY,28/01/2016,157.5,Training Expenses - General,Passenger Railways,GPC
Statement 19/01/2016 - 18/02/2016 ,Corporate Resources,CROSS COUNTRY,29/01/2016,118.5,Training Expenses - General,Passenger Railways,GPC
Statement 19/01/2016 - 18/02/2016 ,Corporate Resources,CROSS COUNTRY CC,20/01/2016,22.7,Training Expenses - General,Passenger Railways,GPC
Statement 19/01/2016 - 18/02/2016 ,Corporate Resources,DESTINET LTD,30/01/2016,174,Advertising - General,Advertising Services,GPC
Statement 19/01/2016 - 18/02/2016 ,Corporate Resources,DIAMOND PUBLISHING LTD,18/01/2016,233.79,Other Expenditure - General,Miscellaneous Publishing and  Printing,GPC
Statement 19/01/2016 - 18/02/2016 ,Corporate Resources,DISCLOSURE SCOT,28/01/2016,25,Other Expenditure - General,Government Services-Not Elsewhere Classified,GPC
Statement 19/01/2016 - 18/02/2016 ,Corporate Resources,EAST MIDLANDS LEICESTER,26/01/2016,13.5,Casual/Essential - General,Automobile Parking Lots and Garages,GPC
Statement 19/01/2016 - 18/02/2016 ,Corporate Resources,EAST MIDLANDS LEICESTER,04/02/2016,13.5,Casual/Essential - General,Automobile Parking Lots and Garages,GPC
Statement 19/01/2016 - 18/02/2016 ,Corporate Resources,EAST MIDLANDS LEICESTER,21/01/2016,13.5,Public Transport -  Staff - General,Automobile Parking Lots and Garages,GPC
Statement 19/01/2016 - 18/02/2016 ,Corporate Resources,EAST MIDLANDS LEICESTER,03/02/2016,7.5,Public Transport -  Staff - General,Automobile Parking Lots and Garages,GPC
Statement 19/01/2016 - 18/02/2016 ,Corporate Resources,EAST MIDLANDS LEICESTER,10/02/2016,13.5,Public Transport -  Staff - General,Automobile Parking Lots and Garages,GPC
Statement 19/01/2016 - 18/02/2016 ,Corporate Resources,EAST MIDLANDS LEICESTER,11/02/2016,13.5,Public Transport -  Staff - General,Automobile Parking Lots and Garages,GPC
Statement 19/01/2016 - 18/02/2016 ,Corporate Resources,EAST MIDLANDS MARKET HAR,18/01/2016,8.5,Public Transport -  Staff - General,Automobile Parking Lots and Garages,GPC
Statement 19/01/2016 - 18/02/2016 ,Corporate Resources,EAST MIDLANDS MARKET HAR,20/01/2016,11,Public Transport -  Staff - General,Automobile Parking Lots and Garages,GPC
Statement 19/01/2016 - 18/02/2016 ,Corporate Resources,EAST MIDLANDS MARKET HAR,21/01/2016,11,Public Transport -  Staff - General,Automobile Parking Lots and Garages,GPC
Statement 19/01/2016 - 18/02/2016 ,Corporate Resources,EAST MIDLANDS MARKET HAR,21/01/2016,11,Public Transport -  Staff - General,Automobile Parking Lots and Garages,GPC
Statement 19/01/2016 - 18/02/2016 ,Corporate Resources,EAST MIDLANDS MARKET HAR,26/01/2016,11,Public Transport -  Staff - General,Automobile Parking Lots and Garages,GPC
Statement 19/01/2016 - 18/02/2016 ,Corporate Resources,EAST MIDLANDS MARKET HAR,27/01/2016,11,Public Transport -  Staff - General,Automobile Parking Lots and Garages,GPC
Statement 19/01/2016 - 18/02/2016 ,Corporate Resources,EAST MIDLANDS MARKET HAR,03/02/2016,11,Public Transport -  Staff - General,Automobile Parking Lots and Garages,GPC
Statement 19/01/2016 - 18/02/2016 ,Corporate Resources,EAST MIDLANDS MARKET HAR,03/02/2016,11,Public Transport -  Staff - General,Automobile Parking Lots and Garages,GPC
Statement 19/01/2016 - 18/02/2016 ,Corporate Resources,EAST MIDLANDS MARKET HAR,04/02/2016,11,Public Transport -  Staff - General,Automobile Parking Lots and Garages,GPC
Statement 19/01/2016 - 18/02/2016 ,Corporate Resources,EAST MIDLANDS MARKET HAR,09/02/2016,17.5,Public Transport -  Staff - General,Automobile Parking Lots and Garages,GPC
Statement 19/01/2016 - 18/02/2016 ,Corporate Resources,EAST MIDLANDS MARKET HAR,10/02/2016,11,Public Transport -  Staff - General,Automobile Parking Lots and Garages,GPC
Statement 19/01/2016 - 18/02/2016 ,Corporate Resources,EAST MIDLANDS MARKET HAR,10/02/2016,11,Public Transport -  Staff - General,Automobile Parking Lots and Garages,GPC
Statement 19/01/2016 - 18/02/2016 ,Corporate Resources,EAST MIDLANDS MARKET HAR,15/02/2016,11,Public Transport -  Staff - General,Automobile Parking Lots and Garages,GPC
Statement 19/01/2016 - 18/02/2016 ,Corporate Resources,EASTMIDLANDSTRAINS,20/01/2016,125.58,Public Transport -  Staff - General,Passenger Railways,GPC
Statement 19/01/2016 - 18/02/2016 ,Corporate Resources,ESPO,16/02/2016,26.04,Other Expenditure - General,Government Services-Not Elsewhere Classified,GPC
Statement 19/01/2016 - 18/02/2016 ,Corporate Resources,FACEBOOK JVF4792TE2,31/01/2016,158.21,Advertising - General,Advertising Services,GPC
Statement 19/01/2016 - 18/02/2016 ,Corporate Resources,FACEBOOK MJC5Q8S672,31/01/2016,87.95,Advertising - General,Advertising Services,GPC
Statement 19/01/2016 - 18/02/2016 ,Corporate Resources,FOREIGN EXCHANGE FEE,02/02/2016,38.86,IT Equipment - Software,Misc-Unknown,GPC
Statement 19/01/2016 - 18/02/2016 ,Corporate Resources,FOREIGN EXCHANGE FEE,08/02/2016,2.46,Publicity/Marketing - General,Misc-Unknown,GPC
Statement 19/01/2016 - 18/02/2016 ,Corporate Resources,FOREIGN EXCHANGE FEE,12/02/2016,1.13,Subscriptions - General,Misc-Unknown,GPC
Statement 19/01/2016 - 18/02/2016 ,Corporate Resources,FRIENDS MEETING HOUSE,27/01/2016,95,Conference - General,Business Services-Not Elsewhere Classified,GPC
Statement 19/01/2016 - 18/02/2016 ,Corporate Resources,FTC ECOM,11/02/2016,71.17,Training Expenses - General,Schools and Educational Services-Not Elsewhere Cla,GPC
Statement 19/01/2016 - 18/02/2016 ,Corporate Resources,GANTTIC LLC,11/02/2016,41.02,Subscriptions - General,Miscellaneous and Specialty Retail Stores,GPC
Statement 19/01/2016 - 18/02/2016 ,Corporate Resources,GIUSEPPE ON THE STEPS,19/01/2016,16.95,Subsistence - General,"Eating Places, Restaurants",GPC
Statement 19/01/2016 - 18/02/2016 ,Corporate Resources,GO OUTDOORS LTD,22/01/2016,6.25,Other Expenditure - General,"Sports Apparel, Riding Apparel Stores",GPC
Statement 19/01/2016 - 18/02/2016 ,Corporate Resources,GROUNDSMAN TOOLS AND SUPP,04/02/2016,64,Operational Equipment - General,Hardware Stores,GPC
Statement 19/01/2016 - 18/02/2016 ,Corporate Resources,GYNSILLS,02/02/2016,10.09,Subsistence - General,"Drinking Places (Alcoholic Beverages)-Bars, Tavern",GPC
Statement 19/01/2016 - 18/02/2016 ,Corporate Resources,HARLOW BROS LTD,22/01/2016,6.45,Other Services - General,"Building Materials, Lumber Stores",GPC
Statement 19/01/2016 - 18/02/2016 ,Corporate Resources,HKS IBSTOCK,23/01/2016,5.15,Petrol/Oil/Tyres/Spares - General,Service Stations (with or without Ancillary Servic,GPC
Statement 19/01/2016 - 18/02/2016 ,Corporate Resources,HMCOURTS-SERVICE.G,20/01/2016,210,Other Expenditure - General,Fines,GPC
Statement 19/01/2016 - 18/02/2016 ,Corporate Resources,HMCOURTS-SERVICE.G,03/02/2016,210,Other Expenditure - General,Fines,GPC
Statement 19/01/2016 - 18/02/2016 ,Corporate Resources,HOLIDAY INN EXPRSS,03/02/2016,219,Training Expenses - General,"Lodging-Hotels, Motels, Resorts",GPC
Statement 19/01/2016 - 18/02/2016 ,Corporate Resources,HOOTSUITE MEDIA INC.,06/02/2016,89.46,Publicity/Marketing - General,Business Services-Not Elsewhere Classified,GPC
Statement 19/01/2016 - 18/02/2016 ,Corporate Resources,HTTP://ACE.APPRENTICES,03/02/2016,22,Training Expenses - General,"Management, Consulting and Public Relations Servic",GPC
Statement 19/01/2016 - 18/02/2016 ,Corporate Resources,HTTP://ACE.APPRENTICES,03/02/2016,22,Training Expenses - General,"Management, Consulting and Public Relations Servic",GPC
Statement 19/01/2016 - 18/02/2016 ,Corporate Resources,HTTP://ACE.APPRENTICES,03/02/2016,22,Training Expenses - General,"Management, Consulting and Public Relations Servic",GPC
Statement 19/01/2016 - 18/02/2016 ,Corporate Resources,HTTP://ACE.APPRENTICES,03/02/2016,22,Training Expenses - General,"Management, Consulting and Public Relations Servic",GPC
Statement 19/01/2016 - 18/02/2016 ,Corporate Resources,HTTP://ACE.APPRENTICES,11/02/2016,22,Training Expenses - General,"Management, Consulting and Public Relations Servic",GPC
Statement 19/01/2016 - 18/02/2016 ,Corporate Resources,HTTP://ACE.APPRENTICES,12/02/2016,22,Training Expenses - General,"Management, Consulting and Public Relations Servic",GPC
Statement 19/01/2016 - 18/02/2016 ,Corporate Resources,HTTP://ACE.APPRENTICES,12/02/2016,22,Training Expenses - General,"Management, Consulting and Public Relations Servic",GPC
Statement 19/01/2016 - 18/02/2016 ,Corporate Resources,IVANHOE COUNTRY STORE,21/01/2016,77.87,Materials - General,Miscellaneous General Merchandise Stores,GPC
Statement 19/01/2016 - 18/02/2016 ,Corporate Resources,IVANHOE COUNTRY STORE,03/02/2016,74.99,Other Services - General,Miscellaneous General Merchandise Stores,GPC
Statement 19/01/2016 - 18/02/2016 ,Corporate Resources,IVANHOE COUNTRY STORE,09/02/2016,89.99,Other Services - General,Miscellaneous General Merchandise Stores,GPC
Statement 19/01/2016 - 18/02/2016 ,Corporate Resources,J B TOOL HIRE LTD,28/01/2016,11.26,Operational Equipment - General,"Equipment Rental and Leasing Services, Tool Rental",GPC
Statement 19/01/2016 - 18/02/2016 ,Corporate Resources,LEGACY HOTELS,09/02/2016,89,Training Expenses - General,"Lodging-Hotels, Motels, Resorts",GPC
Statement 19/01/2016 - 18/02/2016 ,Corporate Resources,LINCAT LTD,20/01/2016,74.28,Materials - General,Miscellaneous General Merchandise Stores,GPC
Statement 19/01/2016 - 18/02/2016 ,Corporate Resources,LINKEDIN-250 3858104,19/01/2016,227.94,Other Expenditure - General,Continuity/Subscription Merchants,GPC
Statement 19/01/2016 - 18/02/2016 ,Corporate Resources,LINKEDIN-2545618814,03/02/2016,227.94,Recruitment Advertising - General,Continuity/Subscription Merchants,GPC
Statement 19/01/2016 - 18/02/2016 ,Corporate Resources,LUL TICKET MACHINE,09/02/2016,55,Public Transport -  Staff - General,Passenger Railways,GPC
Statement 19/01/2016 - 18/02/2016 ,Corporate Resources,MALMAISON MCHESTER,18/01/2016,23.53,Subsistence - General,"Lodging-Hotels, Motels, Resorts",GPC
Statement 19/01/2016 - 18/02/2016 ,Corporate Resources,METROLINK TVM,18/01/2016,3.1,Public Transport -  Staff - General,"Bus Lines, Charters, Tour Buses",GPC
Statement 19/01/2016 - 18/02/2016 ,Corporate Resources,METROLINK TVM,18/01/2016,3.6,Public Transport -  Staff - General,"Bus Lines, Charters, Tour Buses",GPC
Statement 19/01/2016 - 18/02/2016 ,Corporate Resources,METROLINK TVM,22/01/2016,3.6,Public Transport -  Staff - General,"Bus Lines, Charters, Tour Buses",GPC
Statement 19/01/2016 - 18/02/2016 ,Corporate Resources,METROLINK TVM,27/01/2016,3.9,Public Transport -  Staff - General,"Bus Lines, Charters, Tour Buses",GPC
Statement 19/01/2016 - 18/02/2016 ,Corporate Resources,METROLINK TVM,01/02/2016,3.1,Public Transport -  Staff - General,"Bus Lines, Charters, Tour Buses",GPC
Statement 19/01/2016 - 18/02/2016 ,Corporate Resources,METROLINK TVM,03/02/2016,3.1,Public Transport -  Staff - General,"Bus Lines, Charters, Tour Buses",GPC
Statement 19/01/2016 - 18/02/2016 ,Corporate Resources,METROLINK TVM,10/02/2016,5.7,Public Transport -  Staff - General,"Bus Lines, Charters, Tour Buses",GPC
Statement 19/01/2016 - 18/02/2016 ,Corporate Resources,METROLINK TVM,11/02/2016,3.9,Public Transport -  Staff - General,"Bus Lines, Charters, Tour Buses",GPC
Statement 19/01/2016 - 18/02/2016 ,Corporate Resources,METROLINK TVM,15/02/2016,3.9,Public Transport -  Staff - General,"Bus Lines, Charters, Tour Buses",GPC
Statement 19/01/2016 - 18/02/2016 ,Corporate Resources,METROLINK TVM,16/02/2016,3.1,Public Transport -  Staff - General,"Bus Lines, Charters, Tour Buses",GPC
Statement 19/01/2016 - 18/02/2016 ,Corporate Resources,METROLINK TVM,16/02/2016,4,Public Transport -  Staff - General,"Bus Lines, Charters, Tour Buses",GPC
Statement 19/01/2016 - 18/02/2016 ,Corporate Resources,MONSTER UK,04/02/2016,238.8,Schools Agency staff - Teaching Staff,Information Retrieval Services,GPC
Statement 19/01/2016 - 18/02/2016 ,Corporate Resources,MONSTER UK,05/02/2016,228,Schools Agency staff - Teaching Staff,Information Retrieval Services,GPC
Statement 19/01/2016 - 18/02/2016 ,Corporate Resources,MONSTER UK,05/02/2016,228,Schools Agency staff - Teaching Staff,Information Retrieval Services,GPC
Statement 19/01/2016 - 18/02/2016 ,Corporate Resources,MONSTER UK,11/02/2016,228,Schools Agency staff - Teaching Staff,Information Retrieval Services,GPC
Statement 19/01/2016 - 18/02/2016 ,Corporate Resources,MONSTER UK,11/02/2016,228,Schools Agency staff - Teaching Staff,Information Retrieval Services,GPC
Statement 19/01/2016 - 18/02/2016 ,Corporate Resources,MONSTER UK,12/02/2016,228,Schools Agency staff - Teaching Staff,Information Retrieval Services,GPC
Statement 19/01/2016 - 18/02/2016 ,Corporate Resources,MONSTER UK,16/02/2016,238.8,Schools Agency staff - Teaching Staff,Information Retrieval Services,GPC
Statement 19/01/2016 - 18/02/2016 ,Corporate Resources,MONSTER UK,16/02/2016,238.8,Schools Agency staff - Teaching Staff,Information Retrieval Services,GPC
Statement 19/01/2016 - 18/02/2016 ,Corporate Resources,NCP LIMITED,26/01/2016,6.5,Public Transport -  Staff - General,Automobile Parking Lots and Garages,GPC
Statement 19/01/2016 - 18/02/2016 ,Corporate Resources,NCS VUE CITB HS&E REV,15/02/2016,11.17,Training Expenses - General,Schools and Educational Services-Not Elsewhere Cla,GPC
Statement 19/01/2016 - 18/02/2016 ,Corporate Resources,NPOWER,04/02/2016,54.95,Other Expenditure - General,"Utilities-Electric, Gas, Sanitary, Water",GPC
Statement 19/01/2016 - 18/02/2016 ,Corporate Resources,OU CONTINUING EDUC,16/02/2016,214.25,Training Expenses - General,"Colleges, Universities, Professional Schools, and",GPC
Statement 19/01/2016 - 18/02/2016 ,Corporate Resources,PARKING LEIC CC,25/01/2016,8,Public Transport -  Staff - General,Government Services-Not Elsewhere Classified,GPC
Statement 19/01/2016 - 18/02/2016 ,Corporate Resources,PARKING LEIC CC,25/01/2016,8,Public Transport -  Staff - General,Government Services-Not Elsewhere Classified,GPC
Statement 19/01/2016 - 18/02/2016 ,Corporate Resources,PARKING LEIC CC,25/01/2016,8,Public Transport -  Staff - General,Government Services-Not Elsewhere Classified,GPC
Statement 19/01/2016 - 18/02/2016 ,Corporate Resources,PARKING TAMWORTH STN,16/02/2016,7.5,Public Transport -  Staff - General,Automobile Parking Lots and Garages,GPC
Statement 19/01/2016 - 18/02/2016 ,Corporate Resources,PAYPAL  LOCALINFORM,25/01/2016,205.94,Training Expenses - General,Charitable and Social Service Organizations,GPC
Statement 19/01/2016 - 18/02/2016 ,Corporate Resources,PAYPAL  MUSEUMSASSC,09/02/2016,250,Training Expenses - General,Charitable and Social Service Organizations,GPC
Statement 19/01/2016 - 18/02/2016 ,Corporate Resources,PERSONAL STRENGTHS (UK,29/01/2016,72.22,Training Expenses - General,Business Services-Not Elsewhere Classified,GPC
Statement 19/01/2016 - 18/02/2016 ,Corporate Resources,POUNDSTRETCHER 292,13/02/2016,4.99,Other Services - General,"Drapery, Window Coverings, and Upholstery Stores",GPC
Statement 19/01/2016 - 18/02/2016 ,Corporate Resources,PREMIER INN44521250,09/02/2016,81.75,Subsistence - General,PREMIER TRAVEL,GPC
Statement 19/01/2016 - 18/02/2016 ,Corporate Resources,PREMIER INN44521250,25/01/2016,63.96,Training Expenses - General,PREMIER TRAVEL,GPC
Statement 19/01/2016 - 18/02/2016 ,Corporate Resources,PREMIER INN44521260,28/01/2016,37.6,Subsistence - General,PREMIER TRAVEL,GPC
Statement 19/01/2016 - 18/02/2016 ,Corporate Resources,PREMIER INN44521260,28/01/2016,37.6,Subsistence - General,PREMIER TRAVEL,GPC
Statement 19/01/2016 - 18/02/2016 ,Corporate Resources,PREMIER INN44521260,28/01/2016,37.6,Subsistence - General,PREMIER TRAVEL,GPC
Statement 19/01/2016 - 18/02/2016 ,Corporate Resources,PREMIER INN44521260,28/01/2016,29.6,Subsistence - General,PREMIER TRAVEL,GPC
Statement 19/01/2016 - 18/02/2016 ,Corporate Resources,PREMIER INN44528255,20/01/2016,82.46,Other Expenditure - General,PREMIER TRAVEL,GPC
Statement 19/01/2016 - 18/02/2016 ,Corporate Resources,PUMPKIN CAFE,09/02/2016,5.25,Subsistence - General,"Package Stores, Beer, Wine, Liquor",GPC
Statement 19/01/2016 - 18/02/2016 ,Corporate Resources,RBI QSS SUBS,18/01/2016,260,Subscriptions - General,"Books, Periodicals, and Newspapers",GPC
Statement 19/01/2016 - 18/02/2016 ,Corporate Resources,REDLINE AVIATION SEC LTD,26/01/2016,9,Training Expenses - General,Professional Services-Not Elsewhere Classified,GPC
Statement 19/01/2016 - 18/02/2016 ,Corporate Resources,RUSKIN MILL EDUCATIONAL,16/02/2016,23.4,Stationery - General,Miscellaneous and Specialty Retail Stores,GPC
Statement 19/01/2016 - 18/02/2016 ,Corporate Resources,RYMAN,25/01/2016,23.97,Stationery - General,"Stationery, Office, and School Supply Stores",GPC
Statement 19/01/2016 - 18/02/2016 ,Corporate Resources,RYMAN,25/01/2016,-23.97,Stationery - General,"Stationery, Office, and School Supply Stores",GPC
Statement 19/01/2016 - 18/02/2016 ,Corporate Resources,RYMAN,25/01/2016,15.98,Stationery - General,"Stationery, Office, and School Supply Stores",GPC
Statement 19/01/2016 - 18/02/2016 ,Corporate Resources,SAINSBURY'S S/MKT,25/01/2016,50,Materials - General,"Grocery Stores, Supermarkets",GPC
Statement 19/01/2016 - 18/02/2016 ,Corporate Resources,SAINSBURY'S S/MKT,25/01/2016,50,Materials - General,"Grocery Stores, Supermarkets",GPC
Statement 19/01/2016 - 18/02/2016 ,Corporate Resources,SAINSBURY'S S/MKT,25/01/2016,30.9,Materials - General,"Grocery Stores, Supermarkets",GPC
Statement 19/01/2016 - 18/02/2016 ,Corporate Resources,SAINSBURYS S/MKTS,02/02/2016,48,Materials - General,"Grocery Stores, Supermarkets",GPC
Statement 19/01/2016 - 18/02/2016 ,Corporate Resources,SALFORD PROFESSIONAL DEVE,19/01/2016,199,Training Expenses - General,Schools and Educational Services-Not Elsewhere Cla,GPC
Statement 19/01/2016 - 18/02/2016 ,Corporate Resources,SELFSERVE TICKET,18/01/2016,7.3,Public Transport -  Staff - General,Passenger Railways,GPC
Statement 19/01/2016 - 18/02/2016 ,Corporate Resources,Shell Ashby,24/01/2016,4.16,Petrol/Oil/Tyres/Spares - General,Service Stations (with or without Ancillary Servic,GPC
Statement 19/01/2016 - 18/02/2016 ,Corporate Resources,Shell Ashby,07/02/2016,2.49,Petrol/Oil/Tyres/Spares - General,Service Stations (with or without Ancillary Servic,GPC
Statement 19/01/2016 - 18/02/2016 ,Corporate Resources,SLB SUPPLIES LTD,01/02/2016,8.5,Other Services - General,Pet Shops-Pet Food and Supplies,GPC
Statement 19/01/2016 - 18/02/2016 ,Corporate Resources,SLB SUPPLIES LTD,16/02/2016,28.7,Other Services - General,Pet Shops-Pet Food and Supplies,GPC
Statement 19/01/2016 - 18/02/2016 ,Corporate Resources,SURVEYMONKEY.COM,08/02/2016,26,Other Expenditure - General,Computer Network/Information Services,GPC
Statement 19/01/2016 - 18/02/2016 ,Corporate Resources,TCPA WEB INTERNET,02/02/2016,100,Training Expenses - General,Book Stores,GPC
Statement 19/01/2016 - 18/02/2016 ,Corporate Resources,TESCO STORES-2044,26/01/2016,10.68,Other Expenditure - General,"Grocery Stores, Supermarkets",GPC
Statement 19/01/2016 - 18/02/2016 ,Corporate Resources,TESCO-STORES 6065,02/02/2016,1,Other Expenditure - General,"Grocery Stores, Supermarkets",GPC
Statement 19/01/2016 - 18/02/2016 ,Corporate Resources,TICKETS08712200260,28/01/2016,50,Public Transport -  Staff - General,"Theatrical Products (Except Motion Pictures), Tick",GPC
Statement 19/01/2016 - 18/02/2016 ,Corporate Resources,TOTALJOBS GROUP LTD,02/02/2016,210,Printing - General,Miscellaneous Publishing and  Printing,GPC
Statement 19/01/2016 - 18/02/2016 ,Corporate Resources,TRADING STANDARDS INST,21/01/2016,112,Training Expenses - General,CombinationMail/Phones and Retail Merchants,GPC
Statement 19/01/2016 - 18/02/2016 ,Corporate Resources,TRADING STANDARDS INST,02/02/2016,69,Training Expenses - General,CombinationMail/Phones and Retail Merchants,GPC
Statement 19/01/2016 - 18/02/2016 ,Corporate Resources,TRAINLINE,09/02/2016,80.99,Casual/Essential - General,Passenger Railways,GPC
Statement 19/01/2016 - 18/02/2016 ,Corporate Resources,TRAINLINE,16/02/2016,87.21,Casual/Essential - General,Passenger Railways,GPC
Statement 19/01/2016 - 18/02/2016 ,Corporate Resources,TRAINLINE,19/01/2016,335.58,Training Expenses - General,Passenger Railways,GPC
Statement 19/01/2016 - 18/02/2016 ,Corporate Resources,TSGN,20/01/2016,178,Public Transport -  Staff - General,Passenger Railways,GPC
Statement 19/01/2016 - 18/02/2016 ,Corporate Resources,TSGN - ST PANCRAS INTE,21/01/2016,25,Public Transport -  Staff - General,Passenger Railways,GPC
Statement 19/01/2016 - 18/02/2016 ,Corporate Resources,UPT - HIGHCROSS LEICESTE,03/02/2016,5,Public Transport -  Staff - General,Professional Services-Not Elsewhere Classified,GPC
Statement 19/01/2016 - 18/02/2016 ,Corporate Resources,UPT-EAST MIDLANDS TRN-LB,18/01/2016,14,Public Transport -  Staff - General,Professional Services-Not Elsewhere Classified,GPC
Statement 19/01/2016 - 18/02/2016 ,Corporate Resources,UPT-EAST MIDLANDS TRN-LB,22/01/2016,11.5,Public Transport -  Staff - General,Professional Services-Not Elsewhere Classified,GPC
Statement 19/01/2016 - 18/02/2016 ,Corporate Resources,UPT-EAST MIDLANDS TRN-LB,25/01/2016,11.5,Public Transport -  Staff - General,Professional Services-Not Elsewhere Classified,GPC
Statement 19/01/2016 - 18/02/2016 ,Corporate Resources,VUE NCS CITB HS&E TEST,04/02/2016,19.5,Training Expenses - General,Schools and Educational Services-Not Elsewhere Cla,GPC
Statement 19/01/2016 - 18/02/2016 ,Corporate Resources,VUE NCS CITB HS&E TEST,15/02/2016,19.5,Training Expenses - General,Schools and Educational Services-Not Elsewhere Cla,GPC
Statement 19/01/2016 - 18/02/2016 ,Corporate Resources,WEST COAST TRAINS,20/01/2016,10,Public Transport -  Staff - General,Automobile Parking Lots and Garages,GPC
Statement 19/01/2016 - 18/02/2016 ,Corporate Resources,WEST COAST TRAINS,14/02/2016,63,Public Transport -  Staff - General,Passenger Railways,GPC
Statement 19/01/2016 - 18/02/2016 ,Corporate Resources,WHITE PAPER CONFERENCE,16/02/2016,149,Training Expenses - General,Professional Services-Not Elsewhere Classified,GPC
Statement 19/01/2016 - 18/02/2016 ,Corporate Resources,WICKES,13/02/2016,14.16,Other Services - General,"Building Materials, Lumber Stores",GPC
Statement 19/01/2016 - 18/02/2016 ,Corporate Resources,WICKES HINCKLEY,10/02/2016,42.02,Operational Equipment - General,"Building Materials, Lumber Stores",GPC
Statement 19/01/2016 - 18/02/2016 ,Corporate Resources,WILKO RETAIL LIMIT,01/02/2016,10.15,Stationery - General,Household Appliance Stores,GPC
Statement 19/01/2016 - 18/02/2016 ,Corporate Resources,WM MORRISON 054,21/01/2016,3,Other Expenditure - General,"Grocery Stores, Supermarkets",GPC
Statement 19/01/2016 - 18/02/2016 ,Corporate Resources,WM MORRISON 054,07/02/2016,12.59,Other Expenditure - General,"Grocery Stores, Supermarkets",GPC
Statement 19/01/2016 - 18/02/2016 ,Corporate Resources,WWW OPPASSESSMENT EU COM,26/01/2016,574,Training Expenses - General,Business Services-Not Elsewhere Classified,GPC
Statement 19/01/2016 - 18/02/2016 ,Corporate Resources,WWW OPPASSESSMENT EU COM,02/02/2016,328,Training Expenses - General,Business Services-Not Elsewhere Classified,GPC
Statement 19/01/2016 - 18/02/2016 ,Corporate Resources,WWW OPPASSESSMENT EU COM,04/02/2016,41,Training Expenses - General,Business Services-Not Elsewhere Classified,GPC
Statement 19/01/2016 - 18/02/2016 ,Corporate Resources,WWW.BATS.ORG.UK,01/02/2016,295,Training Expenses - General,Charitable and Social Service Organizations,GPC
Statement 19/01/2016 - 18/02/2016 ,Corporate Resources,WWW.CIPFA.ORG.UK/PFMCO,24/12/2015,-114,Training Expenses - General,Membership Organizations-Not Elsewhere Classified,GPC
Statement 19/01/2016 - 18/02/2016 ,Corporate Resources,WWW.COMMIDEA.COM,26/01/2016,96.97,IT Equipment - General,Computer and Data Processing Services,GPC
Statement 19/01/2016 - 18/02/2016 ,Corporate Resources,WWW.DESKTOP-INNOVATION,21/01/2016,29.34,Stationery - General,"Stationery, Office, and School Supply Stores",GPC
Statement 19/01/2016 - 18/02/2016 ,Corporate Resources,WWW.DVLA.GOV.UK,09/02/2016,227.5,Road Licences - General,Government Services-Not Elsewhere Classified,GPC
Statement 19/01/2016 - 18/02/2016 ,Corporate Resources,WWW.DVLA.GOV.UK,10/02/2016,227.5,Road Licences - General,Government Services-Not Elsewhere Classified,GPC
Statement 19/01/2016 - 18/02/2016 ,Corporate Resources,WWW.EQUIP4WORK.CO.UK,01/02/2016,219,Operational Equipment - General,"Stationery, Office, and School Supply Stores",GPC
Statement 19/01/2016 - 18/02/2016 ,Corporate Resources,WWW.GOLEICESTERSHIRE.C,27/01/2016,26.2,Training Expenses - General,Travel Agencies,GPC
Statement 19/01/2016 - 18/02/2016 ,Corporate Resources,WWW.PCWB.COM,16/02/2016,126.54,Stationery - General,Computer Software Stores,GPC
Statement 19/01/2016 - 18/02/2016 ,Corporate Resources,WWW.POSTURITE.CO.UK,10/02/2016,125.93,IT Equipment - General,Commercial Furniture,GPC
Statement 19/01/2016 - 18/02/2016 ,Corporate Resources,WWW.POSTURITE.CO.UK,27/01/2016,125.94,Other Expenditure - General,Commercial Furniture,GPC
Statement 19/01/2016 - 18/02/2016 ,Corporate Resources,WWW.POSTURITE.CO.UK,01/02/2016,28.74,Public Transport -  Staff - General,Commercial Furniture,GPC
Statement 19/01/2016 - 18/02/2016 ,Corporate Resources,WWW.WESTMINSTER-BRIEFI,25/01/2016,350,Training Expenses - General,Business and Secretarial Schools,GPC
Statement 19/01/2016 - 18/02/2016 ,Corporate Resources,WWW.WESTMINSTER-BRIEFI,15/02/2016,225,Training Expenses - General,Business and Secretarial Schools,GPC
Statement 19/01/2016 - 18/02/2016 ,Corporate Resources,ZIZZI EXETER,08/02/2016,15,Subsistence - General,"Eating Places, Restaurants",GPC
Statement 19/01/2016 - 18/02/2016 ,E&T,Amazon UK Marketplace,20/01/2016,2.53,Fees & Charges (846) - Section 38,Book Stores,GPC
Statement 19/01/2016 - 18/02/2016 ,E&T,Amazon UK Marketplace,14/02/2016,2.59,Telephones - Mobile Phones,Miscellaneous and Specialty Retail Stores,GPC
Statement 19/01/2016 - 18/02/2016 ,E&T,Amazon UK Retail,20/01/2016,16.46,Other Equipment & Materials - General,Direct Marketers - Other,GPC
Statement 19/01/2016 - 18/02/2016 ,E&T,Amazon UK Retail,24/01/2016,22.88,Other Equipment & Materials - General,Direct Marketers - Other,GPC
Statement 19/01/2016 - 18/02/2016 ,E&T,EASTMIDLANDSTRAINS,27/01/2016,22.8,Public Transport -  Staff - General,Passenger Railways,GPC
Statement 19/01/2016 - 18/02/2016 ,E&T,EASTMIDLANDSTRAINS,27/01/2016,237,Public Transport -  Staff - General,Passenger Railways,GPC
Statement 19/01/2016 - 18/02/2016 ,E&T,EASTMIDLANDSTRAINS,28/01/2016,41.6,Public Transport -  Staff - General,Passenger Railways,GPC
Statement 19/01/2016 - 18/02/2016 ,E&T,EASTMIDLANDSTRAINS,03/02/2016,157.5,Public Transport -  Staff - General,Passenger Railways,GPC
Statement 19/01/2016 - 18/02/2016 ,E&T,EASTMIDLANDSTRAINS,04/02/2016,56.45,Public Transport -  Staff - General,Passenger Railways,GPC
Statement 19/01/2016 - 18/02/2016 ,E&T,EASTMIDLANDSTRAINS,12/02/2016,25.8,Public Transport -  Staff - General,Passenger Railways,GPC
Statement 19/01/2016 - 18/02/2016 ,E&T,GOOGLE  ADWS6021297706,27/01/2016,50,Advertising - General,Continuity/Subscription Merchants,GPC
Statement 19/01/2016 - 18/02/2016 ,E&T,HKS IBSTOCK,29/01/2016,51.02,Petrol/Oil/Tyres/Spares - General,Service Stations (with or without Ancillary Servic,GPC
Statement 19/01/2016 - 18/02/2016 ,E&T,UNIVERSITY CAR PARK,18/01/2016,5,Casual/Essential - General,Automobile Parking Lots and Garages,GPC
Statement 19/01/2016 - 18/02/2016 ,E&T,WWW.ACTIVATEEVENTS.COM,12/02/2016,420,Conference - General,Business Services-Not Elsewhere Classified,GPC
Statement 19/01/2016 - 18/02/2016 ,E&T,WWW.DVLA.GOV.UK,09/02/2016,167.5,Road Licences - General,Government Services-Not Elsewhere Classified,GPC
Statement 19/01/2016 - 18/02/2016 ,E&T,WWW.DVLA.GOV.UK,09/02/2016,167.5,Road Licences - General,Government Services-Not Elsewhere Classified,GPC
Statement 19/01/2016 - 18/02/2016 ,E&T,WWW.DVLA.GOV.UK,09/02/2016,167.5,Road Licences - General,Government Services-Not Elsewhere Classified,GPC
Statement 19/01/2016 - 18/02/2016 ,E&T,WWW.DVLA.GOV.UK,09/02/2016,167.5,Road Licences - General,Government Services-Not Elsewhere Classified,GPC
Statement 19/01/2016 - 18/02/2016 ,E&T,WWW.DVLA.GOV.UK,09/02/2016,167.5,Road Licences - General,Government Services-Not Elsewhere Classified,GPC
Statement 19/01/2016 - 18/02/2016 ,E&T,WWW.DVLA.GOV.UK,09/02/2016,167.5,Road Licences - General,Government Services-Not Elsewhere Classified,GPC
Statement 19/01/2016 - 18/02/2016 ,E&T,WWW.DVLA.GOV.UK,09/02/2016,167.5,Road Licences - General,Government Services-Not Elsewhere Classified,GPC
Statement 19/01/2016 - 18/02/2016 ,E&T,WWW.DVLA.GOV.UK,09/02/2016,167.5,Road Licences - General,Government Services-Not Elsewhere Classified,GPC
Statement 19/01/2016 - 18/02/2016 ,E&T,WWW.DVLA.GOV.UK,09/02/2016,167.5,Road Licences - General,Government Services-Not Elsewhere Classified,GPC
Statement 19/01/2016 - 18/02/2016 ,E&T,WWW.DVLA.GOV.UK,09/02/2016,167.5,Road Licences - General,Government Services-Not Elsewhere Classified,GPC
Statement 19/01/2016 - 18/02/2016 ,E&T,WWW.DVLA.GOV.UK,10/02/2016,167.5,Road Licences - General,Government Services-Not Elsewhere Classified,GPC
Statement 19/01/2016 - 18/02/2016 ,E&T,WWW.DVLA.GOV.UK,10/02/2016,167.5,Road Licences - General,Government Services-Not Elsewhere Classified,GPC
Statement 19/01/2016 - 18/02/2016 ,E&T,WWW.DVLA.GOV.UK,10/02/2016,167.5,Road Licences - General,Government Services-Not Elsewhere Classified,GPC
Statement 19/01/2016 - 18/02/2016 ,E&T,WWW.DVLA.GOV.UK,10/02/2016,167.5,Road Licences - General,Government Services-Not Elsewhere Classified,GPC
Statement 19/01/2016 - 18/02/2016 ,E&T,WWW.DVLA.GOV.UK,10/02/2016,167.5,Road Licences - General,Government Services-Not Elsewhere Classified,GPC
Statement 19/01/2016 - 18/02/2016 ,E&T,WWW.DVLA.GOV.UK,10/02/2016,167.5,Road Licences - General,Government Services-Not Elsewhere Classified,GPC
Statement 19/01/2016 - 18/02/2016 ,E&T,WWW.DVLA.GOV.UK,10/02/2016,167.5,Road Licences - General,Government Services-Not Elsewhere Classified,GPC
Statement 19/01/2016 - 18/02/2016 ,E&T,WWW.DVLA.GOV.UK,10/02/2016,167.5,Road Licences - General,Government Services-Not Elsewhere Classified,GPC
Statement 19/01/2016 - 18/02/2016 ,E&T,WWW.DVLA.GOV.UK,10/02/2016,167.5,Road Licences - General,Government Services-Not Elsewhere Classified,GPC
Statement 19/01/2016 - 18/02/2016 ,E&T,WWW.DVLA.GOV.UK,10/02/2016,167.5,Road Licences - General,Government Services-Not Elsewhere Classified,GPC
Statement 19/01/2016 - 18/02/2016 ,E&T,WWW.DVLA.GOV.UK,10/02/2016,167.5,Road Licences - General,Government Services-Not Elsewhere Classified,GPC
Statement 19/01/2016 - 18/02/2016 ,E&T,WWW.DVLA.GOV.UK,10/02/2016,167.5,Road Licences - General,Government Services-Not Elsewhere Classified,GPC
Statement 19/01/2016 - 18/02/2016 ,E&T,WWW.DVLA.GOV.UK,10/02/2016,167.5,Road Licences - General,Government Services-Not Elsewhere Classified,GPC
Statement 19/01/2016 - 18/02/2016 ,E&T,WWW.DVLA.GOV.UK,10/02/2016,167.5,Road Licences - General,Government Services-Not Elsewhere Classified,GPC
Statement 19/01/2016 - 18/02/2016 ,E&T,WWW.DVLA.GOV.UK,10/02/2016,167.5,Road Licences - General,Government Services-Not Elsewhere Classified,GPC
Statement 19/01/2016 - 18/02/2016 ,E&T,WWW.DVLA.GOV.UK,10/02/2016,167.5,Road Licences - General,Government Services-Not Elsewhere Classified,GPC
Statement 19/01/2016 - 18/02/2016 ,E&T,WWW.DVLA.GOV.UK,10/02/2016,167.5,Road Licences - General,Government Services-Not Elsewhere Classified,GPC
Statement 19/01/2016 - 18/02/2016 ,E&T,WWW.DVLA.GOV.UK,10/02/2016,227.5,Road Licences - General,Government Services-Not Elsewhere Classified,GPC
Statement 19/01/2016 - 18/02/2016 ,E&T,WWW.STAPLES.CO.UK,19/01/2016,43.32,Other Equipment & Materials - General,"Stationery, Office, and School Supply Stores",GPC
Statement 19/01/2016 - 18/02/2016 ,Leicestershire Highways,Amazon Svcs Europe SAR,09/02/2016,14.19,Books - General,Book Stores,GPC
Statement 19/01/2016 - 18/02/2016 ,Leicestershire Highways,Amazon UK Marketplace,25/01/2016,3.49,Books - General,Book Stores,GPC
Statement 19/01/2016 - 18/02/2016 ,Leicestershire Highways,Amazon UK Marketplace,25/01/2016,28.76,Books - General,Book Stores,GPC
Statement 19/01/2016 - 18/02/2016 ,Leicestershire Highways,Amazon UK Marketplace,03/02/2016,53.9,Books - General,Book Stores,GPC
Statement 19/01/2016 - 18/02/2016 ,Leicestershire Highways,Amazon UK Marketplace,09/02/2016,41.22,Books - General,Book Stores,GPC
Statement 19/01/2016 - 18/02/2016 ,Leicestershire Highways,Amazon UK Marketplace,10/02/2016,14.95,Books - General,Book Stores,GPC
Statement 19/01/2016 - 18/02/2016 ,Leicestershire Highways,Amazon UK Marketplace,02/02/2016,40.85,Materials - General,Miscellaneous and Specialty Retail Stores,GPC
Statement 19/01/2016 - 18/02/2016 ,Leicestershire Highways,Amazon UK Marketplace,03/02/2016,40,Materials - General,Miscellaneous and Specialty Retail Stores,GPC
Statement 19/01/2016 - 18/02/2016 ,Leicestershire Highways,Amazon UK Marketplace,08/02/2016,2.73,Materials - General,Miscellaneous and Specialty Retail Stores,GPC
Statement 19/01/2016 - 18/02/2016 ,Leicestershire Highways,Amazon UK Marketplace,08/02/2016,4.9,Materials - General,Miscellaneous and Specialty Retail Stores,GPC
Statement 19/01/2016 - 18/02/2016 ,Leicestershire Highways,Amazon UK Marketplace,09/02/2016,57.24,Materials - General,Miscellaneous and Specialty Retail Stores,GPC
Statement 19/01/2016 - 18/02/2016 ,Leicestershire Highways,Amazon UK Marketplace,09/02/2016,2.65,Materials - General,Miscellaneous and Specialty Retail Stores,GPC
Statement 19/01/2016 - 18/02/2016 ,Leicestershire Highways,Amazon UK Marketplace,13/02/2016,8.97,Materials - General,Miscellaneous and Specialty Retail Stores,GPC
Statement 19/01/2016 - 18/02/2016 ,Leicestershire Highways,Amazon UK Marketplace,15/02/2016,59.55,Materials - General,Miscellaneous and Specialty Retail Stores,GPC
Statement 19/01/2016 - 18/02/2016 ,Leicestershire Highways,Amazon UK Retail,08/02/2016,31.24,Other Expenditure - General,Direct Marketers - Other,GPC
Statement 19/01/2016 - 18/02/2016 ,Leicestershire Highways,Amazon UK Retail,09/02/2016,46.63,Other Expenditure - General,Direct Marketers - Other,GPC
Statement 19/01/2016 - 18/02/2016 ,Leicestershire Highways,Amazon UK Retail,15/02/2016,13.81,Other Expenditure - General,Direct Marketers - Other,GPC
Statement 19/01/2016 - 18/02/2016 ,Leicestershire Highways,ARGOS RETAIL GROUP,27/01/2016,28.94,Materials - General,Discount Stores,GPC
Statement 19/01/2016 - 18/02/2016 ,Leicestershire Highways,DVSA MOT COMP 2,27/01/2016,205,Materials - General,Government Services-Not Elsewhere Classified,GPC
Statement 19/01/2016 - 18/02/2016 ,Leicestershire Highways,EXCEL PARKING SERVICES,01/02/2016,60,Casual/Essential - General,Automobile Parking Lots and Garages,GPC
Statement 19/01/2016 - 18/02/2016 ,Leicestershire Highways,FISA,15/02/2016,86.4,Other Services - General,Membership Organizations-Not Elsewhere Classified,GPC
Statement 19/01/2016 - 18/02/2016 ,Leicestershire Highways,SEVERN TRENT WATER,03/02/2016,416.93,Electricity - General,"Utilities-Electric, Gas, Sanitary, Water",GPC
Statement 19/01/2016 - 18/02/2016 ,Leicestershire Highways,TESCO STORES 2950,21/01/2016,30,Materials - General,"Grocery Stores, Supermarkets",GPC
Statement 19/01/2016 - 18/02/2016 ,Leicestershire Highways,TESCO STORES 2950,06/02/2016,30,Materials - General,"Grocery Stores, Supermarkets",GPC
Statement 19/01/2016 - 18/02/2016 ,Leicestershire Highways,WWW.DVLA.GOV.UK,26/01/2016,227.5,Road Licences - General,Government Services-Not Elsewhere Classified,GPC
Statement 19/01/2016 - 18/02/2016 ,Leicestershire Highways,WWW.DVLA.GOV.UK,09/02/2016,227.5,Road Licences - General,Government Services-Not Elsewhere Classified,GPC
Statement 19/01/2016 - 18/02/2016 ,Leicestershire Highways,WWW.DVLA.GOV.UK,09/02/2016,227.5,Road Licences - General,Government Services-Not Elsewhere Classified,GPC
Statement 19/01/2016 - 18/02/2016 ,Leicestershire Highways,WWW.DVLA.GOV.UK,09/02/2016,202.5,Road Licences - General,Government Services-Not Elsewhere Classified,GPC
Statement 19/01/2016 - 18/02/2016 ,Leicestershire Highways,WWW.DVLA.GOV.UK,10/02/2016,227.5,Road Licences - General,Government Services-Not Elsewhere Classified,GPC
Statement 19/01/2016 - 18/02/2016 ,Leicestershire Highways,WWW.DVLA.GOV.UK,10/02/2016,227.5,Road Licences - General,Government Services-Not Elsewhere Classified,GPC
Statement 19/01/2016 - 18/02/2016 ,Leicestershire Highways,WWW.DVLA.GOV.UK,10/02/2016,167.5,Road Licences - General,Government Services-Not Elsewhere Classified,GPC
Statement 19/01/2016 - 18/02/2016 ,Public Health,123 REG R/T,13/02/2016,8.38,IT Equipment - Licences,Continuity/Subscription Merchants,GPC
Statement 19/01/2016 - 18/02/2016 ,Public Health,ACT ACTIVE.comC-1CTH78,29/01/2016,99,Conference - General,Business Services-Not Elsewhere Classified,GPC
Statement 19/01/2016 - 18/02/2016 ,Public Health,ACT ACTIVE.comC-1CTHG4,29/01/2016,99,Conference - General,Business Services-Not Elsewhere Classified,GPC
Statement 19/01/2016 - 18/02/2016 ,Public Health,CHARNWOOD BOROUGH COUNCI,29/01/2016,3.2,Subsistence - General,Automobile Parking Lots and Garages,GPC
Statement 19/01/2016 - 18/02/2016 ,Public Health,EB CHOICE UNLIMITED L,09/02/2016,195,Conference - General,Business Services-Not Elsewhere Classified,GPC
Statement 19/01/2016 - 18/02/2016 ,Public Health,FACEBOOK 8CSYF8AW32,31/01/2016,27.6,Grants - General,Advertising Services,GPC
Statement 19/01/2016 - 18/02/2016 ,Public Health,FLETCHERGATE CARPARK,11/02/2016,8.34,Subsistence - General,Automobile Parking Lots and Garages,GPC
Statement 19/01/2016 - 18/02/2016 ,Public Health,MAKRO SELF SERVICE,08/02/2016,65.96,Provisions - General,Wholesale Clubs,GPC
Statement 19/01/2016 - 18/02/2016 ,Public Health,NCP LIMITED,15/02/2016,9.17,Subsistence - General,Automobile Parking Lots and Garages,GPC
Statement 19/01/2016 - 18/02/2016 ,Public Health,TRAINLINE,29/01/2016,342.21,Public Transport -  Staff - General,Passenger Railways,GPC
Statement 19/01/2016 - 18/02/2016 ,Public Health,TRAINLINE,02/02/2016,84.66,Public Transport -  Staff - General,Passenger Railways,GPC
Statement 19/01/2016 - 18/02/2016 ,Public Health,TWITTER ADVERTISING,12/02/2016,5,Advertising - General,Advertising Services,GPC
Statement 19/01/2016 - 18/02/2016 ,Public Health,VODAFONE PAYG MBB TOPU,26/01/2016,5,Telephones - Mobile Phones,Telecommunication Service Including Local and Long,GPC
Statement 19/01/2016 - 18/02/2016 ,Public Health,WWW.ACORNE.CO.UK EXP,01/02/2016,41.49,Other Equipment & Materials - General,"Gift, Card, Novelty, and Souvenir Shops",GPC
Statement 19/01/2016 - 18/02/2016 ,Public Health,www.groupon.co.uk,01/02/2016,15,Other Equipment & Materials - General,"Buying/Shopping Services, Clubs",GPC
Statement 19/01/2016 - 18/02/2016 ,Public Health,WWW.ULEARNATHLETICS.CO,16/02/2016,480,Other Equipment & Materials - General,Sporting Goods Stores,GPC
Statement 19/01/2016 - 18/02/2016 ,Public Health,WWW.ULEARNATHLETICS.CO,16/02/2016,480,Other Equipment & Materials - General,Sporting Goods Stores,GPC
Statement 19/01/2016 - 18/02/2016 ,Public Health,WWW.ULEARNATHLETICS.CO,16/02/2016,160,Other Equipment & Materials - General,Sporting Goods Stores,GPC
"**Amounts stated are net of VAT, except where VAT has not been recovered.",,,,,,,
